Workbook

Sheet KOUSHOUFAT
A1: م | B1: اسم الطالب | C1: الصف | D1: الشعبة | E1: رقم تسجيل الفرد | F1: رقم تسجيل العائلة | G1: تاريخ الميلاد | H1: البلدة الأصلية
A2: =IF(C2="","",MAX($A$1:A1)+1) -> 1 | B2: Name1 | C2: الخامس | D2: 1 | E2: 2-02969456 | F2: 1-00814263 | G2: 2008-06-12 | H2: NU'EIMAT EL QADI
A3: =IF(C3="","",MAX($A$1:A2)+1) -> 2 | B3: Name2 | C3: الرّابع | D3: 1 | E3: 2-03076009 | F3: 1-00837330 | G3: 2008-02-27 | H3: YIBNA
A4: =IF(C4="","",MAX($A$1:A3)+1) -> 3 | B4: Name3 | C4: الأوّل | D4: 2 | E4: 2-03109081 | F4: 1-00844270 | G4: 2008-12-24 | H4: ARAB ABU RIZQ
A5: =IF(C5="","",MAX($A$1:A4)+1) -> 4 | B5: Name4 | C5: السّادس | D5: 2 | E5: 2-02216018 | F5: 1-00844271 | G5: 2008-02-02 | H5: SARAFAND EL 'AMAR
A6: =IF(C6="","",MAX($A$1:A5)+1) -> 5 | B6: Name5 | C6: الثّاني | D6: 2 | E6: 2-02686648 | F6: 1-00747485 | G6: 2008-11-08 | H6: NU'EIMAT EL QADI
A7: =IF(C7="","",MAX($A$1:A6)+1) -> 6 | B7: Name6 | C7: الثّالث | D7: 2 | E7: 2-03108563 | F7: 1-00844172 | G7: 2008-12-21 | H7: ARAB ABU RIZQ
A8: =IF(C8="","",MAX($A$1:A7)+1) -> 7 | B8: Name7 | C8: الأوّل | D8: 2 | E8: 2-02543453 | F8: 1-00716845 | G8: 2008-07-24 | H8: NAJMAT EL QASSAR
A9: =IF(C9="","",MAX($A$1:A8)+1) -> 8 | B9: Name8 | C9: الأوّل | D9: 3 | E9: 2-02543453 | F9: 1-00716845 | G9: 2008-07-24 | H9: NAJMAT EL QASSAR
A10: =IF(C10="","",MAX($A$1:A9)+1) -> 9 | B10: Name9 | C10: الخامس | D10: 3 | E10: 2-02678715 | F10: 1-00745858 | G10: 2008-08-08 | H10: NU'EIMAT EL QADI
A11: =IF(C11="","",MAX($A$1:A10)+1) -> 10 | B11: Name10 | C11: السّادس | D11: 3 | E11: 2-02457835 | F11: 1-00697066 | G11: 2008-10-01 | H11: SAWAFIR EL GHARBIYA
A12: =IF(C12="","",MAX($A$1:A11)+1) -> 11 | B12: Name11 | C12: الرّابع | D12: 3 | E12: 2-02943757 | F12: 1-00808692 | G12: 2008-10-16 | H12: AQIR
A13: =IF(C13="","",MAX($A$1:A12)+1) -> 12 | B13: Name12 | C13: الأوّل | D13: 3 | E13: 2-02612820 | F13: 1-00731560 | G13: 2008-09-24 | H13: NAJMAT ABU SUHAIBAN
A14: =IF(C14="","",MAX($A$1:A13)+1) -> 13 | B14: Name13 | C14: السّادس | D14: 3 | E14: 2-02147975 | F14: 1-00631642 | G14: 2008-02-15 | H14: BEIT JIRJA
A15: =IF(C15="","",MAX($A$1:A14)+1) -> 14 | B15: Name14 | C15: الثّالث | D15: 3 | E15: 2-07500821 | F15: 1-02115850 | G15: 2008-10-02 | H15: BEERSHEBA
A16: =IF(C16="","",MAX($A$1:A15)+1) -> 15 | B16: Name15 | C16: الثّاني | D16: 4 | E16: 2-02704624 | F16: 1-00751218 | G16: 2009-01-16 | H16: BUDAYNAT
A17: =IF(C17="","",MAX($A$1:A16)+1) -> 16 | B17: Name16 | C17: الثّالث | D17: 4 | E17: 2-02279412 | F17: 1-00658997 | G17: 2008-05-14 | H17: BUREIR
A18: =IF(C18="","",MAX($A$1:A17)+1) -> 17 | B18: Name17 | C18: الرّابع | D18: 4 | E18: 2-02894554 | F18: 1-00797491 | G18: 2008-04-28 | H18: ABBASIYA
A19: =IF(C19="","",MAX($A$1:A18)+1) -> 18 | B19: Name18 | C19: الخامس | D19: 4 | E19: 2-03040768 | F19: 1-00829863 | G19: 2008-10-29 | H19: WADI HUNEIN
A20: =IF(C20="","",MAX($A$1:A19)+1) -> 19 | B20: Name19 | C20: الثّالث | D20: 4 | E20: 2-02476286 | F20: 1-00701129 | G20: 2008-07-21 | H20: SAWAFIR ESH SHARQIYA
A21: =IF(C21="","",MAX($A$1:A20)+1) -> 20 | B21: Name20 | C21: الثّاني | D21: 5 | E21: 2-02971041 | F21: 1-00814625 | G21: 2008-09-07 | H21: BASHSHIT
A22: =IF(C22="","",MAX($A$1:A21)+1) -> 21 | B22: Name21 | C22: الثّاني | D22: 5 | E22: 2-03112369 | F22: 1-00844963 | G22: 2008-11-12 | H22: ARAB EN NAJAWIYEH
A23: =IF(C23="","",MAX($A$1:A22)+1) -> 22 | B23: Name22 | C23: السّادس | D23: 5 | E23: 2-02692060 | F23: 1-00748525 | G23: 2008-07-28 | H23: NU'EIMAT EL QADI
A24: =IF(C24="","",MAX($A$1:A23)+1) -> 23 | B24: Name23 | C24: الثّالث | D24: 6 | E24: 2-02578371 | F24: 1-00724364 | G24: 2008-02-26 | H24: GHAWALI ABU SITTEH
A25: =IF(C25="","",MAX($A$1:A24)+1) -> 24 | B25: Name24 | C25: الخامس | D25: 6 | E25: 2-02683118 | F25: 1-00746744 | G25: 2008-01-01 | H25: NU'EIMAT EL QADI
A26: =IF(C26="","",MAX($A$1:A25)+1) -> 25 | B26: Name25 | C26: الرّابع | D26: 6 | E26: 2-02656855 | F26: 1-00740905 | G26: 2008-06-28 | H26: SUBHIYIN
A27: =IF(C27="","",MAX($A$1:A26)+1) -> 26 | B27: Name26 | C27: الرّابع | D27: 6 | E27: 2-02927950 | F27: 1-00805213 | G27: 2008-02-23 | H27: SALAMA
A28: =IF(C28="","",MAX($A$1:A27)+1) -> 27 | B28: Name27 | C28: الأوّل | D28: 6 | E28: 2-02129500 | F28: 1-00627762 | G28: 2008-08-06 | H28: BARBARA
A29: =IF(C29="","",MAX($A$1:A28)+1) -> 28 | B29: Name28 | C29: الأوّل | D29: 7 | E29: 2-02674619 | F29: 1-00744877 | G29: 2008-08-20 | H29: NU'EIMAT EL QADI
A30: =IF(C30="","",MAX($A$1:A29)+1) -> 29 | B30: Name29 | C30: الثّاني | D30: 7 | E30: 2-03056332 | F30: 1-00833203 | G30: 2008-08-13 | H30: YIBNA
A31: =IF(C31="","",MAX($A$1:A30)+1) -> 30 | B31: Name30 | C31: الرّابع | D31: 7 | E31: 2-02574900 | F31: 1-00723564 | G31: 2008-11-29 | H31: GHAWALI ABU KHATLEH
A32: =IF(C32="","",MAX($A$1:A31)+1) -> 31 | B32: Name31 | C32: الثّاني | D32: 7 | E32: 2-03083331 | F32: 1-00838716 | G32: 2008-11-19 | H32: =H31 -> GHAWALI ABU KHATLEH
A33: =IF(C33="","",MAX($A$1:A32)+1) -> 32 | B33: Name32 | C33: الخامس | D33: 7 | E33: 2-03104194 | F33: 1-00843288 | G33: 2008-01-01 | H33: ARAB ABU RIZQ
A34: =IF(C34="","",MAX($A$1:A33)+1) -> 33 | B34: Name33 | C34: الخامس | D34: 7 | E34: 2-02895301 | F34: 1-00797633 | G34: 2008-12-06 | H34: ABBASIYA
A35: =IF(C35="","",MAX($A$1:A34)+1) -> 34 | B35: Name34 | C35: الرّابع | D35: 7 | E35: 2-02575214 | F35: 1-00723631 | G35: 2008-11-02 | H35: GHAWALI ABU KHATLEH
A36: =IF(C36="","",MAX($A$1:A35)+1) -> 35 | B36: Name35 | C36: الخامس | D36: 7 | E36: 2-02679767 | F36: 1-00746098 | G36: 2008-04-08 | H36: NU'EIMAT EL QADI
A37: =IF(C37="","",MAX($A$1:A36)+1) -> 36 | B37: Name36 | C37: الثّاني | D37: 7 | E37: 2-02129849 | F37: 1-00627842 | G37: 2008-07-03 | H37: BARBARA
A38: =IF(C38="","",MAX($A$1:A37)+1) -> 37 | B38: Name37 | C38: الخامس | D38: 1 | E38: 2-02753692 | F38: 1-00762390 | G38: 2008-09-08 | H38: JAFFA EL AJAMI
A39: =IF(C39="","",MAX($A$1:A38)+1) -> 38 | B39: Name38 | C39: الثّاني | D39: 1 | E39: 2-02585766 | F39: 1-00725718 | G39: 2008-11-15 | H39: GHAWALI ABU SHALHUB
A40: =IF(C40="","",MAX($A$1:A39)+1) -> 39 | B40: Name39 | C40: السّادس | D40: 1 | E40: 2-02990508 | F40: 1-00818829 | G40: 2008-03-25 | H40: QUBEIBA
A41: =IF(C41="","",MAX($A$1:A40)+1) -> 40 | B41: Name40 | C41: الرّابع | D41: 1 | E41: 2-02990509 | F41: 1-00828260 | G41: 2008-12-21 | H41: QUBEIBA
A42: =IF(C42="","",MAX($A$1:A41)+1) -> 41 | B42: Name41 | C42: الرّابع | D42: 1 | E42: 2-02614260 | F42: 1-00731858 | G42: 2008-07-07 | H42: NAJMAT ABU SUHAIBAN
A43: =IF(C43="","",MAX($A$1:A42)+1) -> 42 | B43: Name42 | C43: الثّالث | D43: 1 | E43: 2-02643384 | F43: 1-00737957 | G43: 2008-07-14 | H43: NAJMAT ES SOUFI
A44: =IF(C44="","",MAX($A$1:A43)+1) -> 43 | B44: Name43 | C44: الثّالث | D44: 1 | E44: 2-02304509 | F44: 1-00664233 | G44: 2008-08-15 | H44: BUREIR
A45: =IF(C45="","",MAX($A$1:A44)+1) -> 44 | B45: Name44 | C45: الرّابع | D45: 2 | E45: 2-02162697 | F45: 1-00634694 | G45: 2008-06-29 | H45: BATANI GHARBI
A46: =IF(C46="","",MAX($A$1:A45)+1) -> 45 | B46: Name45 | C46: الثّالث | D46: 2 | E46: 2-02148936 | F46: 1-00631824 | G46: 2008-07-20 | H46: BARBARA
A47: =IF(C47="","",MAX($A$1:A46)+1) -> 46 | B47: Name46 | C47: الأوّل | D47: 2 | E47: 2-02632238 | F47: 1-00735604 | G47: 2008-08-20 | H47: JAWA'IDAH
A48: =IF(C48="","",MAX($A$1:A47)+1) -> 47 | B48: Name47 | C48: الأوّل | D48: 2 | E48: 2-02155804 | F48: 1-00633252 | G48: 2008-09-08 | H48: BATANI GHARBI
A49: =IF(C49="","",MAX($A$1:A48)+1) -> 48 | B49: Name48 | C49: الرّابع | D49: 2 | E49: 2-02565370 | F49: 1-00721425 | G49: 2008-02-25 | H49: WALAYEDA
A50: =IF(C50="","",MAX($A$1:A49)+1) -> 49 | B50: Name49 | C50: الخامس | D50: 3 | E50: 2-03082265 | F50: 1-00838505 | G50: 2008-08-27 | H50: =H49 -> WALAYEDA
A51: =IF(C51="","",MAX($A$1:A50)+1) -> 50 | B51: Name50 | C51: الأوّل | D51: 3 | E51: 2-02841201 | F51: 1-00784126 | G51: 2008-02-17 | H51: JAFFA EL MANSHIYA
A52: =IF(C52="","",MAX($A$1:A51)+1) -> 51 | B52: Name51 | C52: الثّاني | D52: 3 | E52: 2-02279709 | F52: 1-00659077 | G52: 2008-03-02 | H52: BUREIR
A53: =IF(C53="","",MAX($A$1:A52)+1) -> 52 | B53: Name52 | C53: الأوّل | D53: 3 | E53: 2-02953083 | F53: 1-00810652 | G53: 2008-07-18 | H53: LYDDA
A54: =IF(C54="","",MAX($A$1:A53)+1) -> 53 | B54: Name53 | C54: الأوّل | D54: 4 | E54: 2-08200663 | F54: 1-00750643 | G54: 2008-06-22 | H54: ZARABA
A55: =IF(C55="","",MAX($A$1:A54)+1) -> 54 | B55: Name54 | C55: الأوّل | D55: 4 | E55: 2-02895441 | F55: 1-00797657 | G55: 2009-01-18 | H55: ABBASIYA
A56: =IF(C56="","",MAX($A$1:A55)+1) -> 55 | B56: Name55 | C56: الرّابع | D56: 4 | E56: 2-02242954 | F56: 1-00651333 | G56: 2008-04-07 | H56: BEIT TIMA
A57: =IF(C57="","",MAX($A$1:A56)+1) -> 56 | B57: Name56 | C57: الأوّل | D57: 4 | E57: 2-02943506 | F57: 1-00808627 | G57: 2008-01-31 | H57: AQIR
A58: =IF(C58="","",MAX($A$1:A57)+1) -> 57 | B58: Name57 | C58: الأوّل | D58: 4 | E58: 2-02943820 | F58: 1-00808707 | G58: 2008-02-07 | H58: AQIR
A59: =IF(C59="","",MAX($A$1:A58)+1) -> 58 | B59: Name58 | C59: الثّاني | D59: 4 | E59: 2-02805860 | F59: 1-00775274 | G59: 2008-11-11 | H59: JAFFA JABALIYA
A60: =IF(C60="","",MAX($A$1:A59)+1) -> 59 | B60: Name59 | C60: الرّابع | D60: 5 | E60: 2-02685290 | F60: 1-00747240 | G60: 2008-07-16 | H60: NU'EIMAT EL QADI
A61: =IF(C61="","",MAX($A$1:A60)+1) -> 60 | B61: Name60 | C61: الثّاني | D61: 5 | F61: 1-00738819 | G61: 2008-08-18 | H61: NU'EIMAT EL QADI
A62: =IF(C62="","",MAX($A$1:A61)+1) -> 61 | B62: Name61 | C62: السّادس | D62: 5 | E62: 2-03033201 | F62: 1-00828154 | G62: 2008-08-26 | H62: ARAB EL QALA'I
A63: =IF(C63="","",MAX($A$1:A62)+1) -> 62 | B63: Name62 | C63: السّادس | D63: 5 | E63: 2-02547519 | F63: 1-00717775 | G63: 2008-02-23 | H63: MALALIHAH
A64: =IF(C64="","",MAX($A$1:A63)+1) -> 63 | B64: Name63 | C64: الرّابع | D64: 5 | E64: 2-02677916 | F64: 1-00745709 | G64: 2008-07-15 | H64: NU'EIMAT EL QADI
A65: =IF(C65="","",MAX($A$1:A64)+1) -> 64 | B65: Name64 | C65: السّادس | D65: 5 | E65: 2-02370909 | F65: 1-00678352 | G65: 2008-08-12 | H65: ISDUD
A66: =IF(C66="","",MAX($A$1:A65)+1) -> 65 | B66: Name65 | C66: الثّاني | D66: 5 | E66: 2-03023349 | F66: 1-00825911 | G66: 2008-02-14 | H66: WADI HUNEIN
A67: =IF(C67="","",MAX($A$1:A66)+1) -> 66 | B67: Name66 | C67: الخامس | D67: 5 | E67: 2-02684984 | F67: 1-00747155 | G67: 2008-05-15 | H67: NU'EIMAT EL QADI
A68: =IF(C68="","",MAX($A$1:A67)+1) -> 67 | B68: Name67 | C68: الثّالث | D68: 5 | E68: 2-02559674 | F68: 1-00720327 | G68: 2007-09-04 | H68: SHUYOUKH EL 'EID
A69: =IF(C69="","",MAX($A$1:A68)+1) -> 68 | B69: Name68 | C69: الرّابع | D69: 6 | E69: 2-07709602 | F69: 1-00678918 | G69: 2008-11-06 | H69: ISDUD
A70: =IF(C70="","",MAX($A$1:A69)+1) -> 69 | B70: Name69 | C70: الخامس | D70: 6 | E70: 2-02369066 | F70: 1-00677918 | G70: 2008-10-01 | H70: ISDUD
A71: =IF(C71="","",MAX($A$1:A70)+1) -> 70 | B71: Name70 | C71: الثّاني | D71: 6 | E71: 2-02682554 | F71: 1-00746654 | G71: 2008-06-25 | H71: NU'EIMAT EL QADI
A72: =IF(C72="","",MAX($A$1:A71)+1) -> 71 | B72: Name71 | C72: الرّابع | D72: 6 | F72: 1-00627994 | G72: 2008-01-20 | H72: NU'EIMAT EL QADI
A73: =IF(C73="","",MAX($A$1:A72)+1) -> 72 | B73: Name72 | C73: الرّابع | D73: 6 | E73: 2-02993862 | F73: 1-00819592 | G73: 2008-03-28 | H73: SARAFAND EL 'AMAR
A74: =IF(C74="","",MAX($A$1:A73)+1) -> 73 | B74: Name73 | C74: الأوّل | D74: 6 | E74: 2-02206762 | F74: 1-00643720 | G74: 2008-11-03 | H74: BATANI SHARQI
A75: =IF(C75="","",MAX($A$1:A74)+1) -> 74 | B75: Name74 | C75: الأوّل | D75: 6 | E75: 2-02674562 | F75: 1-00744861 | G75: 2008-06-28 | H75: NU'EIMAT EL QADI
A76: =IF(C76="","",MAX($A$1:A75)+1) -> 75 | B76: Name75 | C76: السّادس | D76: 7 | F76: 1-00796993 | G76: 2008-06-15 | H76: NU'EIMAT EL QADI
A77: =IF(C77="","",MAX($A$1:A76)+1) -> 76 | B77: Name76 | C77: الثّالث | D77: 7 | E77: 2-08344856 | F77: 1-00743434 | G77: 2008-01-01 | H77: NU'EIMAT EL QADI
A78: =IF(C78="","",MAX($A$1:A77)+1) -> 77 | B78: Name77 | C78: الرّابع | D78: 7 | E78: 2-02894208 | F78: 1-00797393 | G78: 2008-05-24 | H78: ABBASIYA
A79: =IF(C79="","",MAX($A$1:A78)+1) -> 78 | B79: Name78 | C79: السّادس | D79: 7 | E79: 2-02165529 | F79: 1-00635292 | G79: 2008-08-12 | H79: HAMAMA
A80: =IF(C80="","",MAX($A$1:A79)+1) -> 79 | B80: Name79 | C80: الأوّل | D80: 7 | E80: 2-02427664 | F80: 1-00690447 | G80: 2008-01-19 | H80: KARATIYA
A81: =IF(C81="","",MAX($A$1:A80)+1) -> 80 | B81: Name80 | C81: السّادس | D81: 1 | E81: 2-02840907 | F81: 1-00784067 | G81: 2006-01-18 | H81: JAFFA EL MANSHIYA
A82: =IF(C82="","",MAX($A$1:A81)+1) -> 81 | B82: Name81 | C82: الثّالث | D82: 1 | E82: 2-02840446 | F82: 1-00783961 | G82: 2008-06-23 | H82: JAFFA EL MANSHIYA
A83: =IF(C83="","",MAX($A$1:A82)+1) -> 82 | B83: Name82 | C83: الثّالث | D83: 1 | E83: 2-02656120 | F83: 1-00740750 | G83: 2008-02-12 | H83: MUHAMMADIYIN
A84: =IF(C84="","",MAX($A$1:A83)+1) -> 83 | B84: Name83 | C84: السّادس | D84: 1 | E84: 2-02282003 | F84: 1-00659563 | G84: 2008-12-14 | H84: BUREIR
A85: =IF(C85="","",MAX($A$1:A84)+1) -> 84 | B85: Name84 | C85: الأوّل | D85: 1 | E85: 2-02677473 | F85: 1-00745606 | G85: 2008-06-09 | H85: NU'EIMAT EL QADI
A86: =IF(C86="","",MAX($A$1:A85)+1) -> 85 | B86: Name85 | C86: الأوّل | D86: 1 | E86: 2-02580915 | F86: 1-00724810 | G86: 2008-10-06 | H86: GHAWALI ABU SITTEH
A87: =IF(C87="","",MAX($A$1:A86)+1) -> 86 | B87: Name86 | C87: الثّالث | D87: 1 | E87: 2-03024624 | F87: 1-00826223 | G87: 2008-01-01 | H87: WADI HUNEIN
A88: =IF(C88="","",MAX($A$1:A87)+1) -> 87 | B88: Name87 | C88: الثّاني | D88: 1 | E88: 2-02316477 | F88: 1-00666720 | G88: 2008-08-26 | H88: IRAQ SUWEIDAN
A89: =IF(C89="","",MAX($A$1:A88)+1) -> 88 | B89: Name88 | C89: الثّاني | D89: 1 | E89: 2-02007038 | F89: 1-00601645 | G89: 2008-11-27 | H89: BARQA
A90: =IF(C90="","",MAX($A$1:A89)+1) -> 89 | B90: Name89 | C90: الأوّل | D90: 1 | E90: 2-02926511 | F90: 1-00804910 | G90: 2008-10-17 | H90: ABU SHUSHA
A91: =IF(C91="","",MAX($A$1:A90)+1) -> 90 | B91: Name90 | C91: الرّابع | D91: 1 | E91: 2-02933247 | F91: 1-00806351 | G91: 2007-07-19 | H91: SHEIK MUWWANNIS
A92: =IF(C92="","",MAX($A$1:A91)+1) -> 91 | B92: Name91 | C92: الثّاني | D92: 1 | F92: 1-00747223 | G92: 2008-05-27 | H92: =H91 -> SHEIK MUWWANNIS
A93: =IF(C93="","",MAX($A$1:A92)+1) -> 92 | B93: Name92 | C93: السّادس | D93: 1 | E93: 2-02560347 | F93: 1-00720485 | G93: 2008-02-28 | H93: SHUYOUKH EL 'EID
A94: =IF(C94="","",MAX($A$1:A93)+1) -> 93 | B94: Name93 | C94: السّادس | D94: 1 | E94: 2-02698101 | F94: 1-00749868 | G94: 2008-12-12 | H94: ABU 'UWAYLI
A95: =IF(C95="","",MAX($A$1:A94)+1) -> 94 | B95: Name94 | C95: الثّاني | D95: 2 | E95: 2-02651021 | F95: 1-00739649 | G95: 2008-07-07 | H95: NAJMAT ES SOUFI
A96: =IF(C96="","",MAX($A$1:A95)+1) -> 95 | B96: Name95 | C96: الأوّل | D96: 2 | E96: 2-03115749 | F96: 1-00845734 | G96: 2008-07-10 | H96: HAIFA
A97: =IF(C97="","",MAX($A$1:A96)+1) -> 96 | B97: Name96 | C97: الثّالث | D97: 2 | E97: 2-03054747 | F97: 1-00832865 | G97: 2008-09-22 | H97: YIBNA
A98: =IF(C98="","",MAX($A$1:A97)+1) -> 97 | B98: Name97 | C98: الثّالث | D98: 2 | E98: 2-02378463 | F98: 1-00679881 | G98: 2008-03-23 | H98: JURA
A99: =IF(C99="","",MAX($A$1:A98)+1) -> 98 | B99: Name98 | C99: الرّابع | D99: 2 | E99: 2-02163498 | F99: 1-00634852 | G99: 2008-09-10 | H99: BATANI GHARBI
A100: =IF(C100="","",MAX($A$1:A99)+1) -> 99 | B100: Name99 | C100: الخامس | D100: 3 | E100: 2-02677288 | F100: 1-00745563 | G100: 2008-08-29 | H100: NU'EIMAT EL QADI
A101: =IF(C101="","",MAX($A$1:A100)+1) -> 100 | B101: Name100 | C101: الثّالث | D101: 3 | E101: 2-02466620 | F101: 1-00698947 | G101: 2008-11-03 | H101: SAWAFIR EL GHARBIYA
A102: =IF(C102="","",MAX($A$1:A101)+1) -> 101 | B102: Name101 | C102: الخامس | D102: 3 | G102: 2008-01-01 | H102: SAWAFIR EL GHARBIYA
A103: =IF(C103="","",MAX($A$1:A102)+1) -> 102 | B103: Name102 | C103: الثّالث | D103: 3 | E103: 2-02933221 | F103: 1-00806347 | G103: 2008-05-20 | H103: SHEIK MUWWANNIS
A104: =IF(C104="","",MAX($A$1:A103)+1) -> 103 | B104: Name103 | C104: الثّاني | D104: 3 | E104: 2-02969395 | F104: 1-00814251 | G104: 2008-07-09 | H104: BASHSHIT
A105: =IF(C105="","",MAX($A$1:A104)+1) -> 104 | B105: Name104 | C105: الأوّل | D105: 3 | E105: 2-02326843 | F105: 1-00668814 | G105: 2008-03-03 | H105: FALUJA
A106: =IF(C106="","",MAX($A$1:A105)+1) -> 105 | B106: Name105 | C106: السّادس | D106: 3 | E106: 2-02694957 | F106: 1-00749141 | G106: 2008-03-07 | H106: AJRAMI
A107: =IF(C107="","",MAX($A$1:A106)+1) -> 106 | B107: Name106 | C107: الرّابع | D107: 3 | E107: 2-03034851 | F107: 1-00828528 | G107: 2008-12-14 | H107: ARAB ER RAYASHAT
A108: =IF(C108="","",MAX($A$1:A107)+1) -> 107 | B108: Name107 | C108: الثّالث | D108: 4 | E108: 2-03023617 | F108: 1-00825974 | G108: 2008-06-01 | H108: WADI HUNEIN
A109: =IF(C109="","",MAX($A$1:A108)+1) -> 108 | B109: Name108 | C109: الثّالث | D109: 4 | E109: 2-02611864 | F109: 1-00731347 | G109: 2008-10-27 | H109: NAJMAT ABU SUHAIBAN
A110: =IF(C110="","",MAX($A$1:A109)+1) -> 109 | B110: Name109 | C110: الأوّل | D110: 4 | E110: 2-02642414 | F110: 1-00737722 | G110: 2008-10-11 | H110: NAJMAT ES SOUFI
A111: =IF(C111="","",MAX($A$1:A110)+1) -> 110 | B111: Name110 | C111: الثّالث | D111: 4 | E111: 2-02920911 | F111: 1-00803579 | G111: 2008-12-04 | H111: SALAMA
A112: =IF(C112="","",MAX($A$1:A111)+1) -> 111 | B112: Name111 | C112: الأوّل | D112: 4 | E112: 2-02681531 | F112: 1-00746472 | G112: 2008-08-22 | H112: NU'EIMAT EL QADI
A113: =IF(C113="","",MAX($A$1:A112)+1) -> 112 | B113: Name112 | C113: الرّابع | D113: 4 | E113: 2-02932968 | F113: 1-00806293 | G113: 2008-05-07 | H113: AQIR
A114: =IF(C114="","",MAX($A$1:A113)+1) -> 113 | B114: Name113 | C114: الثّالث | D114: 4 | E114: 2-02893473 | F114: 1-00797202 | G114: 2008-11-26 | H114: FAJJA
A115: =IF(C115="","",MAX($A$1:A114)+1) -> 114 | B115: Name114 | C115: الأوّل | D115: 4 | E115: 2-02654848 | F115: 1-00740467 | G115: 2008-05-20 | H115: SHE'UOUTH
A116: =IF(C116="","",MAX($A$1:A115)+1) -> 115 | B116: Name115 | C116: الرّابع | D116: 4 | E116: 2-02427784 | F116: 1-00690477 | G116: 2008-08-28 | H116: KARATIYA
A117: =IF(C117="","",MAX($A$1:A116)+1) -> 116 | B117: Name116 | C117: الرّابع | D117: 5 | E117: 2-02926055 | F117: 1-00804811 | G117: 2008-02-28 | H117: SALAMA
A118: =IF(C118="","",MAX($A$1:A117)+1) -> 117 | B118: Name117 | C118: الخامس | D118: 5 | G118: 2008-01-01 | H118: =H117 -> SALAMA
A119: =IF(C119="","",MAX($A$1:A118)+1) -> 118 | B119: Name118 | C119: الثّالث | D119: 5 | E119: 2-02605844 | F119: 1-00729927 | G119: 2008-02-21 | H119: NAJMAT ABU 'ADIRA
A120: =IF(C120="","",MAX($A$1:A119)+1) -> 119 | B120: Name119 | C120: الأوّل | D120: 5 | E120: 2-02678786 | F120: 1-00745868 | G120: 2008-06-24 | H120: NU'EIMAT EL QADI
A121: =IF(C121="","",MAX($A$1:A120)+1) -> 120 | B121: Name120 | C121: السّادس | D121: 5 | E121: 2-02609379 | F121: 1-00730800 | G121: 2008-07-18 | H121: NAJMAT ABU SUHAIBAN
A122: =IF(C122="","",MAX($A$1:A121)+1) -> 121 | B122: Name121 | C122: الخامس | D122: 6 | E122: 2-02003693 | F122: 1-00600943 | G122: 2007-11-14 | H122: BARQA
A123: =IF(C123="","",MAX($A$1:A122)+1) -> 122 | B123: Name122 | C123: السّادس | D123: 6 | E123: 2-02952869 | F123: 1-00810601 | G123: 2008-12-22 | H123: LYDDA
A124: =IF(C124="","",MAX($A$1:A123)+1) -> 123 | B124: Name123 | C124: الخامس | D124: 6 | E124: 2-02280476 | F124: 1-00659223 | G124: 2006-10-22 | H124: BUREIR
A125: =IF(C125="","",MAX($A$1:A124)+1) -> 124 | B125: Name124 | C125: الخامس | D125: 6 | E125: 2-02509253 | F125: 1-00708420 | G125: 2007-04-27 | H125: BEERSHEBA
A126: =IF(C126="","",MAX($A$1:A125)+1) -> 125 | B126: Name125 | C126: الأوّل | D126: 6 | E126: 2-02605783 | F126: 1-00729907 | G126: 2008-11-30 | H126: NAJMAT ABU 'ADIRA
A127: =IF(C127="","",MAX($A$1:A126)+1) -> 126 | B127: Name126 | C127: الخامس | D127: 6 | E127: 2-02677927 | F127: 1-00745712 | G127: 2008-02-20 | H127: NU'EIMAT EL QADI
A128: =IF(C128="","",MAX($A$1:A127)+1) -> 127 | B128: Name127 | C128: الرّابع | D128: 6 | E128: 2-02561609 | F128: 1-00720726 | G128: 2008-06-09 | H128: SHUYOUKH EL 'EID
A129: =IF(C129="","",MAX($A$1:A128)+1) -> 128 | B129: Name128 | C129: الخامس | D129: 7 | E129: 2-02235578 | F129: 1-00649816 | G129: 2008-08-01 | H129: BEIT DARAS
A130: =IF(C130="","",MAX($A$1:A129)+1) -> 129 | B130: Name129 | C130: الرّابع | D130: 7 | E130: 2-03022791 | F130: 1-00825763 | G130: 2009-01-25 | H130: WADI HUNEIN
A131: =IF(C131="","",MAX($A$1:A130)+1) -> 130 | B131: Name130 | C131: الثّالث | D131: 7 | E131: 2-03075789 | F131: 1-00837279 | G131: 2008-05-18 | H131: YIBNA
A132: =IF(C132="","",MAX($A$1:A131)+1) -> 131 | B132: Name131 | C132: الأوّل | D132: 7 | E132: 2-02578237 | F132: 1-00724327 | G132: 2008-08-15 | H132: GHAWALI ABU SITTEH
A133: =IF(C133="","",MAX($A$1:A132)+1) -> 132 | B133: Name132 | C133: الثّاني | D133: 7 | E133: 2-03105210 | F133: 1-00843502 | G133: 2006-11-20 | H133: ARAB ABU RIZQ
A134: =IF(C134="","",MAX($A$1:A133)+1) -> 133 | B134: Name133 | C134: الثّالث | D134: 7 | E134: 2-03056611 | G134: 2008-09-27 | H134: =H133 -> ARAB ABU RIZQ
A135: =IF(C135="","",MAX($A$1:A134)+1) -> 134 | B135: Name134 | C135: الثّاني | D135: 1 | E135: 2-02934701 | F135: 1-00806673 | G135: 2008-09-28 | H135: AQIR
A136: =IF(C136="","",MAX($A$1:A135)+1) -> 135 | B136: Name135 | C136: السّادس | D136: 1 | E136: 2-02379165 | F136: 1-00680054 | G136: 2008-11-01 | H136: ISDUD
A137: =IF(C137="","",MAX($A$1:A136)+1) -> 136 | B137: Name136 | C137: الرّابع | D137: 1 | E137: 2-02368950 | F137: 1-00677891 | G137: 2008-10-14 | H137: ISDUD
A138: =IF(C138="","",MAX($A$1:A137)+1) -> 137 | B138: Name137 | C138: الرّابع | D138: 1 | E138: 2-02042421 | F138: 1-00609268 | G138: 2008-11-18 | H138: MAJDAL
A139: =IF(C139="","",MAX($A$1:A138)+1) -> 138 | B139: Name138 | C139: الخامس | D139: 1 | E139: 2-02007019 | F139: 1-00601637 | G139: 2008-07-11 | H139: BARQA
A140: =IF(C140="","",MAX($A$1:A139)+1) -> 139 | B140: Name139 | C140: الأوّل | D140: 1 | E140: 2-02271212 | F140: 1-00657211 | G140: 2008-10-13 | H140: HIRBIYA
A141: =IF(C141="","",MAX($A$1:A140)+1) -> 140 | B141: Name140 | C141: الأوّل | D141: 2 | E141: 2-02326070 | F141: 1-00668670 | G141: 2008-07-21 | H141: FALUJA
A142: =IF(C142="","",MAX($A$1:A141)+1) -> 141 | B142: Name141 | C142: الخامس | D142: 2 | E142: 2-02448715 | F142: 1-00695043 | G142: 2008-06-16 | H142: QASTINA
A143: =IF(C143="","",MAX($A$1:A142)+1) -> 142 | B143: Name142 | C143: الأوّل | D143: 2 | E143: 2-02699158 | F143: 1-00750088 | G143: 2008-04-04 | H143: ABU 'UWAYLI
A144: =IF(C144="","",MAX($A$1:A143)+1) -> 143 | B144: Name143 | C144: الأوّل | D144: 2 | E144: 2-02689495 | F144: 1-00748045 | G144: 2007-12-05 | H144: NU'EIMAT EL QADI
A145: =IF(C145="","",MAX($A$1:A144)+1) -> 144 | B145: Name144 | C145: الثّاني | D145: 2 | E145: 2-02242879 | F145: 1-00651318 | G145: 2008-10-12 | H145: BEIT TIMA
A146: =IF(C146="","",MAX($A$1:A145)+1) -> 145 | B146: Name145 | C146: الرّابع | D146: 2 | E146: 2-02932568 | F146: 1-00806217 | G146: 2008-06-04 | H146: AQIR
A147: =IF(C147="","",MAX($A$1:A146)+1) -> 146 | B147: Name146 | C147: الأوّل | D147: 2 | E147: 2-02980244 | F147: 1-00816599 | G147: 2008-07-20 | H147: QUBEIBA
A148: =IF(C148="","",MAX($A$1:A147)+1) -> 147 | B148: Name147 | C148: السّادس | D148: 2 | F148: 1-00844389 | G148: 2008-05-04 | H148: =H147 -> QUBEIBA
A149: =IF(C149="","",MAX($A$1:A148)+1) -> 148 | B149: Name148 | C149: السّادس | D149: 2 | E149: 2-02448435 | F149: 1-00694983 | G149: 2008-07-22 | H149: QASTINA
A150: =IF(C150="","",MAX($A$1:A149)+1) -> 149 | B150: Name149 | C150: الخامس | D150: 2 | E150: 2-03112359 | F150: 1-00844960 | G150: 2008-03-04 | H150: ARAB EN NAJAWIYEH
A151: =IF(C151="","",MAX($A$1:A150)+1) -> 150 | B151: Name150 | C151: الأوّل | D151: 2 | E151: 2-02580162 | F151: 1-00724669 | G151: 2008-10-04 | H151: GHAWALI ABU SITTEH
A152: =IF(C152="","",MAX($A$1:A151)+1) -> 151 | B152: Name151 | C152: الخامس | D152: 2 | E152: 2-02992961 | F152: 1-00819398 | G152: 2008-03-07 | H152: SARAFAND EL 'AMAR
A153: =IF(C153="","",MAX($A$1:A152)+1) -> 152 | B153: Name152 | C153: الرّابع | D153: 2 | E153: 2-02582922 | F153: 1-00725190 | G153: 2008-12-16 | H153: GHAWALI ABU SITTEH
A154: =IF(C154="","",MAX($A$1:A153)+1) -> 153 | B154: Name153 | C154: الرّابع | D154: 3 | E154: 2-02797619 | F154: 1-00773184 | G154: 2007-05-12 | H154: JAFFA EL MANSHIYA
A155: =IF(C155="","",MAX($A$1:A154)+1) -> 154 | B155: Name154 | C155: السّادس | D155: 3 | G155: 2008-01-19 | H155: =H154 -> JAFFA EL MANSHIYA
A156: =IF(C156="","",MAX($A$1:A155)+1) -> 155 | B156: Name155 | C156: السّادس | D156: 3 | E156: 2-02279418 | F156: 1-00658999 | G156: 2008-05-11 | H156: BUREIR
A157: =IF(C157="","",MAX($A$1:A156)+1) -> 156 | B157: Name156 | C157: السّادس | D157: 3 | E157: 2-02677944 | F157: 1-00745716 | G157: 2008-03-14 | H157: NU'EIMAT EL QADI
A158: =IF(C158="","",MAX($A$1:A157)+1) -> 157 | B158: Name157 | C158: الثّالث | D158: 3 | E158: 2-02428057 | F158: 1-00690531 | G158: 2008-08-03 | H158: KARATIYA
A159: =IF(C159="","",MAX($A$1:A158)+1) -> 158 | B159: Name158 | C159: الثّاني | D159: 4 | E159: 2-02157222 | F159: 1-00633571 | G159: 2008-11-13 | H159: BATANI GHARBI
A160: =IF(C160="","",MAX($A$1:A159)+1) -> 159 | B160: Name159 | C160: الأوّل | D160: 4 | E160: 2-02942402 | F160: 1-00808363 | G160: 2007-12-29 | H160: AQIR
A161: =IF(C161="","",MAX($A$1:A160)+1) -> 160 | B161: Name160 | C161: الخامس | D161: 4 | G161: 2008-06-12 | H161: =H160 -> AQIR
A162: =IF(C162="","",MAX($A$1:A161)+1) -> 161 | B162: Name161 | C162: الثّاني | D162: 4 | E162: 2-03024195 | F162: 1-00826120 | G162: 2008-10-16 | H162: WADI HUNEIN
A163: =IF(C163="","",MAX($A$1:A162)+1) -> 162 | B163: Name162 | C163: السّادس | D163: 4 | E163: 2-02448498 | F163: 1-00694993 | G163: 2008-05-04 | H163: QASTINA
A164: =IF(C164="","",MAX($A$1:A163)+1) -> 163 | B164: Name163 | C164: الثّاني | D164: 4 | E164: 2-02945994 | F164: 1-00809195 | G164: 2008-03-13 | H164: AQIR
A165: =IF(C165="","",MAX($A$1:A164)+1) -> 164 | B165: Name164 | C165: الثّاني | D165: 4 | E165: 2-02684809 | F165: 1-00747089 | G165: 2008-11-12 | H165: NU'EIMAT EL QADI
A166: =IF(C166="","",MAX($A$1:A165)+1) -> 165 | B166: Name165 | C166: السّادس | D166: 5 | E166: 2-02989005 | F166: 1-00818503 | G166: 2008-12-07 | H166: QUBEIBA
A167: =IF(C167="","",MAX($A$1:A166)+1) -> 166 | B167: Name166 | C167: الخامس | D167: 5 | E167: 2-02368061 | F167: 1-00677720 | G167: 2008-08-09 | H167: ISDUD
A168: =IF(C168="","",MAX($A$1:A167)+1) -> 167 | B168: Name167 | C168: الخامس | D168: 5 | E168: 2-02679069 | F168: 1-00745917 | G168: 2007-03-21 | H168: NU'EIMAT EL QADI
A169: =IF(C169="","",MAX($A$1:A168)+1) -> 168 | B169: Name168 | C169: الثّالث | D169: 5 | E169: 2-02874042 | F169: 1-00792221 | G169: 2008-05-29 | H169: JAFFA SAKNET DARWICH
A170: =IF(C170="","",MAX($A$1:A169)+1) -> 169 | B170: Name169 | C170: الأوّل | D170: 5 | E170: 2-02676746 | F170: 1-00745433 | G170: 2008-10-26 | H170: NU'EIMAT EL QADI
A171: =IF(C171="","",MAX($A$1:A170)+1) -> 170 | B171: Name170 | C171: الثّاني | D171: 5 | E171: 2-02677640 | F171: 1-00745647 | G171: 2008-04-24 | H171: NU'EIMAT EL QADI
A172: =IF(C172="","",MAX($A$1:A171)+1) -> 171 | B172: Name171 | C172: الأوّل | D172: 5 | E172: 2-02971004 | F172: 1-00814613 | G172: 2008-07-31 | H172: BASHSHIT
A173: =IF(C173="","",MAX($A$1:A172)+1) -> 172 | B173: Name172 | C173: السّادس | D173: 5 | E173: 2-02980867 | F173: 1-00816730 | G173: 2008-08-08 | H173: QUBEIBA
A174: =IF(C174="","",MAX($A$1:A173)+1) -> 173 | B174: Name173 | C174: الأوّل | D174: 5 | E174: 2-02992529 | F174: 1-00819282 | G174: 2008-07-17 | H174: SARAFAND EL 'AMAR
A175: =IF(C175="","",MAX($A$1:A174)+1) -> 174 | B175: Name174 | C175: الرّابع | D175: 5 | E175: 2-02980585 | F175: 1-00816663 | G175: 2008-01-02 | H175: BASHSHIT
A176: =IF(C176="","",MAX($A$1:A175)+1) -> 175 | B176: Name175 | C176: الثّالث | D176: 5 | E176: 2-02561570 | F176: 1-00720720 | G176: 2008-07-02 | H176: SHUYOUKH EL 'EID
A177: =IF(C177="","",MAX($A$1:A176)+1) -> 176 | B177: Name176 | C177: الرّابع | D177: 6 | E177: 2-02367524 | F177: 1-00677609 | G177: 2008-09-02 | H177: ISDUD
A178: =IF(C178="","",MAX($A$1:A177)+1) -> 177 | B178: Name177 | C178: الخامس | D178: 6 | E178: 2-06114478 | F178: 1-01324405 | G178: 2008-10-09 | H178: FALUJA
A179: =IF(C179="","",MAX($A$1:A178)+1) -> 178 | B179: Name178 | C179: السّادس | D179: 6 | E179: 2-02684860 | F179: 1-00747108 | G179: 2008-04-06 | H179: NU'EIMAT EL QADI
A180: =IF(C180="","",MAX($A$1:A179)+1) -> 179 | B180: Name179 | C180: الأوّل | D180: 6 | E180: 2-02650648 | F180: 1-00739564 | G180: 2008-10-03 | H180: NAJMAT ES SOUFI
A181: =IF(C181="","",MAX($A$1:A180)+1) -> 180 | B181: Name180 | C181: الرّابع | D181: 6 | E181: 2-02894977 | F181: 1-00797576 | G181: 2008-05-21 | H181: ABBASIYA
A182: =IF(C182="","",MAX($A$1:A181)+1) -> 181 | B182: Name181 | C182: الثّالث | D182: 6 | E182: 2-02279510 | F182: 1-00659024 | G182: 2008-07-16 | H182: BUREIR
A183: =IF(C183="","",MAX($A$1:A182)+1) -> 182 | B183: Name182 | C183: الخامس | D183: 7 | E183: 2-02582965 | F183: 1-00725198 | G183: 2008-05-27 | H183: GHAWALI ABU SITTEH
A184: =IF(C184="","",MAX($A$1:A183)+1) -> 183 | B184: Name183 | C184: الأوّل | D184: 7 | E184: 2-05852624 | F184: 1-00832220 | G184: 2008-07-13 | H184: YIBNA
A185: =IF(C185="","",MAX($A$1:A184)+1) -> 184 | B185: Name184 | C185: الرّابع | D185: 7 | E185: 2-03081848 | F185: 1-00838423 | G185: 2008-09-06 | H185: YIBNA
A186: =IF(C186="","",MAX($A$1:A185)+1) -> 185 | B186: Name185 | C186: الثّالث | D186: 7 | E186: 2-02679551 | F186: 1-00746041 | G186: 2008-10-04 | H186: NU'EIMAT EL QADI
A187: =IF(C187="","",MAX($A$1:A186)+1) -> 186 | B187: Name186 | C187: الرّابع | D187: 7 | E187: 2-02476437 | F187: 1-00701158 | G187: 2008-07-01 | H187: SAWAFIR ESH SHARQIYA
A188: =IF(C188="","",MAX($A$1:A187)+1) -> 187 | B188: Name187 | C188: الثّاني | D188: 7 | E188: 2-03108558 | F188: 1-00844171 | G188: 2008-05-07 | H188: ARAB ABU RIZQ
A189: =IF(C189="","",MAX($A$1:A188)+1) -> 188 | B189: Name188 | C189: السّادس | D189: 7 | E189: 2-02989488 | F189: 1-00818609 | G189: 2008-06-30 | H189: QUBEIBA
A190: =IF(C190="","",MAX($A$1:A189)+1) -> 189 | B190: Name189 | C190: الأوّل | D190: 1 | E190: 2-02685351 | F190: 1-00747251 | G190: 2008-07-13 | H190: NU'EIMAT EL QADI
A191: =IF(C191="","",MAX($A$1:A190)+1) -> 190 | B191: Name190 | C191: الرّابع | D191: 1 | E191: 2-02987333 | F191: 1-00818124 | G191: 2008-01-27 | H191: BIR SALIM
A192: =IF(C192="","",MAX($A$1:A191)+1) -> 191 | B192: Name191 | C192: الخامس | D192: 1 | E192: 2-02652205 | F192: 1-00739876 | G192: 2007-11-04 | H192: SHE'UOUTH
A193: =IF(C193="","",MAX($A$1:A192)+1) -> 192 | B193: Name192 | C193: الخامس | D193: 1 | E193: 2-03054837 | F193: 1-00832881 | G193: 2008-07-25 | H193: YIBNA
A194: =IF(C194="","",MAX($A$1:A193)+1) -> 193 | B194: Name193 | C194: الثّاني | D194: 2 | G194: 2008-10-04 | H194: =H193 -> YIBNA
A195: =IF(C195="","",MAX($A$1:A194)+1) -> 194 | B195: Name194 | C195: الثّاني | D195: 2 | E195: 2-03045890 | F195: 1-00830999 | G195: 2008-12-15 | H195: YIBNA
A196: =IF(C196="","",MAX($A$1:A195)+1) -> 195 | B196: Name195 | C196: الخامس | D196: 2 | E196: 2-02985743 | F196: 1-00817759 | G196: 2008-11-01 | H196: BIR SALIM
A197: =IF(C197="","",MAX($A$1:A196)+1) -> 196 | B197: Name196 | C197: السّادس | D197: 2 | E197: 2-02841035 | F197: 1-00784093 | G197: 2008-07-11 | H197: JAFFA EL MANSHIYA
A198: =IF(C198="","",MAX($A$1:A197)+1) -> 197 | B198: Name197 | C198: الثّاني | D198: 2 | E198: 2-02651120 | F198: 1-00739664 | G198: 2008-09-30 | H198: NAJMAT ES SOUFI
A199: =IF(C199="","",MAX($A$1:A198)+1) -> 198 | B199: Name198 | C199: الثّاني | D199: 2 | E199: 2-02992962 | F199: 1-00819398 | G199: 2008-03-07 | H199: SARAFAND EL 'AMAR
A200: =IF(C200="","",MAX($A$1:A199)+1) -> 199 | B200: Name199 | C200: الثّالث | D200: 2 | F200: 1-00659076 | G200: 2008-05-16 | H200: =H199 -> SARAFAND EL 'AMAR
... 1028 more rows

Sheet الأوّل
A1: م | B1: اسم الطالب | C1: الصف | D1: الشعبة | E1: رقم تسجيل الفرد | F1: رقم تسجيل العائلة | G1: تاريخ الميلاد | H1: البلدة الأصلية
A2: 1 | B2: Name3 | C2: الأوّل | D2: 2 | E2: 2-03109081 | F2: 1-00844270 | G2: 2008-12-24 | H2: ARAB ABU RIZQ
A3: 2 | B3: Name7 | C3: الأوّل | D3: 2 | E3: 2-02543453 | F3: 1-00716845 | G3: 2008-07-24 | H3: NAJMAT EL QASSAR
A4: 3 | B4: Name8 | C4: الأوّل | D4: 3 | E4: 2-02543453 | F4: 1-00716845 | G4: 2008-07-24 | H4: NAJMAT EL QASSAR
A5: 4 | B5: Name12 | C5: الأوّل | D5: 3 | E5: 2-02612820 | F5: 1-00731560 | G5: 2008-09-24 | H5: NAJMAT ABU SUHAIBAN
A6: 5 | B6: Name27 | C6: الأوّل | D6: 6 | E6: 2-02129500 | F6: 1-00627762 | G6: 2008-08-06 | H6: BARBARA
A7: 6 | B7: Name28 | C7: الأوّل | D7: 7 | E7: 2-02674619 | F7: 1-00744877 | G7: 2008-08-20 | H7: NU'EIMAT EL QADI
A8: 7 | B8: Name46 | C8: الأوّل | D8: 2 | E8: 2-02632238 | F8: 1-00735604 | G8: 2008-08-20 | H8: JAWA'IDAH
A9: 8 | B9: Name47 | C9: الأوّل | D9: 2 | E9: 2-02155804 | F9: 1-00633252 | G9: 2008-09-08 | H9: BATANI GHARBI
A10: 9 | B10: Name50 | C10: الأوّل | D10: 3 | E10: 2-02841201 | F10: 1-00784126 | G10: 2008-02-17 | H10: JAFFA EL MANSHIYA
A11: 10 | B11: Name52 | C11: الأوّل | D11: 3 | E11: 2-02953083 | F11: 1-00810652 | G11: 2008-07-18 | H11: LYDDA
A12: 11 | B12: Name53 | C12: الأوّل | D12: 4 | E12: 2-08200663 | F12: 1-00750643 | G12: 2008-06-22 | H12: ZARABA
A13: 12 | B13: Name54 | C13: الأوّل | D13: 4 | E13: 2-02895441 | F13: 1-00797657 | G13: 2009-01-18 | H13: ABBASIYA
A14: 13 | B14: Name56 | C14: الأوّل | D14: 4 | E14: 2-02943506 | F14: 1-00808627 | G14: 2008-01-31 | H14: AQIR
A15: 14 | B15: Name57 | C15: الأوّل | D15: 4 | E15: 2-02943820 | F15: 1-00808707 | G15: 2008-02-07 | H15: AQIR
A16: 15 | B16: Name73 | C16: الأوّل | D16: 6 | E16: 2-02206762 | F16: 1-00643720 | G16: 2008-11-03 | H16: BATANI SHARQI
A17: 16 | B17: Name74 | C17: الأوّل | D17: 6 | E17: 2-02674562 | F17: 1-00744861 | G17: 2008-06-28 | H17: NU'EIMAT EL QADI
A18: 17 | B18: Name79 | C18: الأوّل | D18: 7 | E18: 2-02427664 | F18: 1-00690447 | G18: 2008-01-19 | H18: KARATIYA
A19: 18 | B19: Name84 | C19: الأوّل | D19: 1 | E19: 2-02677473 | F19: 1-00745606 | G19: 2008-06-09 | H19: NU'EIMAT EL QADI
A20: 19 | B20: Name85 | C20: الأوّل | D20: 1 | E20: 2-02580915 | F20: 1-00724810 | G20: 2008-10-06 | H20: GHAWALI ABU SITTEH
A21: 20 | B21: Name89 | C21: الأوّل | D21: 1 | E21: 2-02926511 | F21: 1-00804910 | G21: 2008-10-17 | H21: ABU SHUSHA
A22: 21 | B22: Name95 | C22: الأوّل | D22: 2 | E22: 2-03115749 | F22: 1-00845734 | G22: 2008-07-10 | H22: HAIFA
A23: 22 | B23: Name104 | C23: الأوّل | D23: 3 | E23: 2-02326843 | F23: 1-00668814 | G23: 2008-03-03 | H23: FALUJA
A24: 23 | B24: Name109 | C24: الأوّل | D24: 4 | E24: 2-02642414 | F24: 1-00737722 | G24: 2008-10-11 | H24: NAJMAT ES SOUFI
A25: 24 | B25: Name111 | C25: الأوّل | D25: 4 | E25: 2-02681531 | F25: 1-00746472 | G25: 2008-08-22 | H25: NU'EIMAT EL QADI
A26: 25 | B26: Name114 | C26: الأوّل | D26: 4 | E26: 2-02654848 | F26: 1-00740467 | G26: 2008-05-20 | H26: SHE'UOUTH
A27: 26 | B27: Name119 | C27: الأوّل | D27: 5 | E27: 2-02678786 | F27: 1-00745868 | G27: 2008-06-24 | H27: NU'EIMAT EL QADI
A28: 27 | B28: Name125 | C28: الأوّل | D28: 6 | E28: 2-02605783 | F28: 1-00729907 | G28: 2008-11-30 | H28: NAJMAT ABU 'ADIRA
A29: 28 | B29: Name131 | C29: الأوّل | D29: 7 | E29: 2-02578237 | F29: 1-00724327 | G29: 2008-08-15 | H29: GHAWALI ABU SITTEH
A30: 29 | B30: Name139 | C30: الأوّل | D30: 1 | E30: 2-02271212 | F30: 1-00657211 | G30: 2008-10-13 | H30: HIRBIYA
A31: 30 | B31: Name140 | C31: الأوّل | D31: 2 | E31: 2-02326070 | F31: 1-00668670 | G31: 2008-07-21 | H31: FALUJA
A32: 31 | B32: Name142 | C32: الأوّل | D32: 2 | E32: 2-02699158 | F32: 1-00750088 | G32: 2008-04-04 | H32: ABU 'UWAYLI
A33: 32 | B33: Name143 | C33: الأوّل | D33: 2 | E33: 2-02689495 | F33: 1-00748045 | G33: 2007-12-05 | H33: NU'EIMAT EL QADI
A34: 33 | B34: Name146 | C34: الأوّل | D34: 2 | E34: 2-02980244 | F34: 1-00816599 | G34: 2008-07-20 | H34: QUBEIBA
A35: 34 | B35: Name150 | C35: الأوّل | D35: 2 | E35: 2-02580162 | F35: 1-00724669 | G35: 2008-10-04 | H35: GHAWALI ABU SITTEH
A36: 35 | B36: Name159 | C36: الأوّل | D36: 4 | E36: 2-02942402 | F36: 1-00808363 | G36: 2007-12-29 | H36: AQIR
A37: 36 | B37: Name169 | C37: الأوّل | D37: 5 | E37: 2-02676746 | F37: 1-00745433 | G37: 2008-10-26 | H37: NU'EIMAT EL QADI
A38: 37 | B38: Name171 | C38: الأوّل | D38: 5 | E38: 2-02971004 | F38: 1-00814613 | G38: 2008-07-31 | H38: BASHSHIT
A39: 38 | B39: Name173 | C39: الأوّل | D39: 5 | E39: 2-02992529 | F39: 1-00819282 | G39: 2008-07-17 | H39: SARAFAND EL 'AMAR
A40: 39 | B40: Name179 | C40: الأوّل | D40: 6 | E40: 2-02650648 | F40: 1-00739564 | G40: 2008-10-03 | H40: NAJMAT ES SOUFI
A41: 40 | B41: Name183 | C41: الأوّل | D41: 7 | E41: 2-05852624 | F41: 1-00832220 | G41: 2008-07-13 | H41: YIBNA
A42: 41 | B42: Name189 | C42: الأوّل | D42: 1 | E42: 2-02685351 | F42: 1-00747251 | G42: 2008-07-13 | H42: NU'EIMAT EL QADI
A43: 42 | B43: Name203 | C43: الأوّل | D43: 3 | E43: 2-02679456 | F43: 1-00746018 | G43: 2008-06-25 | H43: NU'EIMAT EL QADI
A44: 43 | B44: Name206 | C44: الأوّل | D44: 4 | E44: 2-02237385 | F44: 1-00650209 | G44: 2008-02-08 | H44: HATTA
A45: 44 | B45: Name212 | C45: الأوّل | D45: 5 | E45: 2-02681436 | F45: 1-00746457 | G45: 2008-05-09 | H45: NU'EIMAT EL QADI
A46: 45 | B46: Name215 | C46: الأوّل | D46: 5 | E46: 2-02683947 | F46: 1-00746917 | G46: 2006-08-19 | H46: NU'EIMAT EL QADI
A47: 46 | B47: Name216 | C47: الأوّل | D47: 5 | E47: 2-03077237 | F47: 1-00837573 | G47: 2008-12-17 | H47: YIBNA
A48: 47 | B48: Name217 | C48: الأوّل | D48: 5 | E48: 2-02578510 | F48: 1-00724410 | G48: 2008-08-11 | H48: GHAWALI ABU SITTEH
A49: 48 | B49: Name221 | C49: الأوّل | D49: 6 | E49: 2-03037859 | F49: 1-00829180 | G49: 2008-01-18 | H49: ARAB EL HAMAYDEH
A50: 49 | B50: Name225 | C50: الأوّل | D50: 6 | E50: 2-02675650 | F50: 1-00745146 | G50: 2008-10-17 | H50: NU'EIMAT EL QADI
A51: 50 | B51: Name228 | C51: الأوّل | D51: 6 | E51: 2-02894029 | F51: 1-00797362 | G51: 2008-12-16 | H51: ABBASIYA
A52: 51 | B52: Name229 | C52: الأوّل | D52: 7 | E52: 2-02992507 | F52: 1-00819275 | G52: 2008-05-28 | H52: SARAFAND EL 'AMAR
A53: 52 | B53: Name233 | C53: الأوّل | D53: 7 | E53: 2-03029025 | F53: 1-00827174 | G53: 2008-03-19 | H53: WADI HUNEIN
A54: 53 | B54: Name236 | C54: الأوّل | D54: 1 | E54: 2-02375709 | F54: 1-00679345 | G54: 2008-06-13 | H54: ISDUD
A55: 54 | B55: Name247 | C55: الأوّل | D55: 2 | F55: 1-00737797 | G55: 2008-03-03 | H55: NAJMAT ES SOUFI
A56: 55 | B56: Name258 | C56: الأوّل | D56: 4 | E56: 2-02428009 | F56: 1-00690522 | G56: 2006-05-02 | H56: KARATIYA
A57: 56 | B57: Name266 | C57: الأوّل | D57: 5 | E57: 2-02610230 | F57: 1-00730985 | G57: 2008-01-11 | H57: NAJMAT ABU SUHAIBAN
A58: 57 | B58: Name267 | C58: الأوّل | D58: 5 | E58: 2-02170260 | F58: 1-00636261 | G58: 2008-02-27 | H58: BATANI SHARQI
A59: 58 | B59: Name268 | C59: الأوّل | D59: 5 | E59: 2-02610231 | F59: 1-00730985 | G59: 2008-01-11 | H59: NAJMAT ABU SUHAIBAN
A60: 59 | B60: Name270 | C60: الأوّل | D60: 6 | E60: 2-02656074 | F60: 1-00740735 | G60: 2008-11-06 | H60: MUHAMMADIYIN

Sheet الثّاني
A1: م | B1: اسم الطالب | C1: الصف | D1: الشعبة | E1: رقم تسجيل الفرد | F1: رقم تسجيل العائلة | G1: تاريخ الميلاد | H1: البلدة الأصلية
A2: 1 | B2: Name5 | C2: الثّاني | D2: 2 | E2: 2-02686648 | F2: 1-00747485 | G2: 2008-11-08 | H2: NU'EIMAT EL QADI
A3: 2 | B3: Name15 | C3: الثّاني | D3: 4 | E3: 2-02704624 | F3: 1-00751218 | G3: 2009-01-16 | H3: BUDAYNAT
A4: 3 | B4: Name20 | C4: الثّاني | D4: 5 | E4: 2-02971041 | F4: 1-00814625 | G4: 2008-09-07 | H4: BASHSHIT
A5: 4 | B5: Name21 | C5: الثّاني | D5: 5 | E5: 2-03112369 | F5: 1-00844963 | G5: 2008-11-12 | H5: ARAB EN NAJAWIYEH
A6: 5 | B6: Name29 | C6: الثّاني | D6: 7 | E6: 2-03056332 | F6: 1-00833203 | G6: 2008-08-13 | H6: YIBNA
A7: 6 | B7: Name31 | C7: الثّاني | D7: 7 | E7: 2-03083331 | F7: 1-00838716 | G7: 2008-11-19 | H7: GHAWALI ABU KHATLEH
A8: 7 | B8: Name36 | C8: الثّاني | D8: 7 | E8: 2-02129849 | F8: 1-00627842 | G8: 2008-07-03 | H8: BARBARA
A9: 8 | B9: Name38 | C9: الثّاني | D9: 1 | E9: 2-02585766 | F9: 1-00725718 | G9: 2008-11-15 | H9: GHAWALI ABU SHALHUB
A10: 9 | B10: Name51 | C10: الثّاني | D10: 3 | E10: 2-02279709 | F10: 1-00659077 | G10: 2008-03-02 | H10: BUREIR
A11: 10 | B11: Name58 | C11: الثّاني | D11: 4 | E11: 2-02805860 | F11: 1-00775274 | G11: 2008-11-11 | H11: JAFFA JABALIYA
A12: 11 | B12: Name60 | C12: الثّاني | D12: 5 | F12: 1-00738819 | G12: 2008-08-18 | H12: NU'EIMAT EL QADI
A13: 12 | B13: Name65 | C13: الثّاني | D13: 5 | E13: 2-03023349 | F13: 1-00825911 | G13: 2008-02-14 | H13: WADI HUNEIN
A14: 13 | B14: Name70 | C14: الثّاني | D14: 6 | E14: 2-02682554 | F14: 1-00746654 | G14: 2008-06-25 | H14: NU'EIMAT EL QADI
A15: 14 | B15: Name87 | C15: الثّاني | D15: 1 | E15: 2-02316477 | F15: 1-00666720 | G15: 2008-08-26 | H15: IRAQ SUWEIDAN
A16: 15 | B16: Name88 | C16: الثّاني | D16: 1 | E16: 2-02007038 | F16: 1-00601645 | G16: 2008-11-27 | H16: BARQA
A17: 16 | B17: Name91 | C17: الثّاني | D17: 1 | F17: 1-00747223 | G17: 2008-05-27 | H17: SHEIK MUWWANNIS
A18: 17 | B18: Name94 | C18: الثّاني | D18: 2 | E18: 2-02651021 | F18: 1-00739649 | G18: 2008-07-07 | H18: NAJMAT ES SOUFI
A19: 18 | B19: Name103 | C19: الثّاني | D19: 3 | E19: 2-02969395 | F19: 1-00814251 | G19: 2008-07-09 | H19: BASHSHIT
A20: 19 | B20: Name132 | C20: الثّاني | D20: 7 | E20: 2-03105210 | F20: 1-00843502 | G20: 2006-11-20 | H20: ARAB ABU RIZQ
A21: 20 | B21: Name134 | C21: الثّاني | D21: 1 | E21: 2-02934701 | F21: 1-00806673 | G21: 2008-09-28 | H21: AQIR
A22: 21 | B22: Name144 | C22: الثّاني | D22: 2 | E22: 2-02242879 | F22: 1-00651318 | G22: 2008-10-12 | H22: BEIT TIMA
A23: 22 | B23: Name158 | C23: الثّاني | D23: 4 | E23: 2-02157222 | F23: 1-00633571 | G23: 2008-11-13 | H23: BATANI GHARBI
A24: 23 | B24: Name161 | C24: الثّاني | D24: 4 | E24: 2-03024195 | F24: 1-00826120 | G24: 2008-10-16 | H24: WADI HUNEIN
A25: 24 | B25: Name163 | C25: الثّاني | D25: 4 | E25: 2-02945994 | F25: 1-00809195 | G25: 2008-03-13 | H25: AQIR
A26: 25 | B26: Name164 | C26: الثّاني | D26: 4 | E26: 2-02684809 | F26: 1-00747089 | G26: 2008-11-12 | H26: NU'EIMAT EL QADI
A27: 26 | B27: Name170 | C27: الثّاني | D27: 5 | E27: 2-02677640 | F27: 1-00745647 | G27: 2008-04-24 | H27: NU'EIMAT EL QADI
A28: 27 | B28: Name187 | C28: الثّاني | D28: 7 | E28: 2-03108558 | F28: 1-00844171 | G28: 2008-05-07 | H28: ARAB ABU RIZQ
A29: 28 | B29: Name193 | C29: الثّاني | D29: 2 | G29: 2008-10-04 | H29: YIBNA
A30: 29 | B30: Name194 | C30: الثّاني | D30: 2 | E30: 2-03045890 | F30: 1-00830999 | G30: 2008-12-15 | H30: YIBNA
A31: 30 | B31: Name197 | C31: الثّاني | D31: 2 | E31: 2-02651120 | F31: 1-00739664 | G31: 2008-09-30 | H31: NAJMAT ES SOUFI
A32: 31 | B32: Name198 | C32: الثّاني | D32: 2 | E32: 2-02992962 | F32: 1-00819398 | G32: 2008-03-07 | H32: SARAFAND EL 'AMAR
A33: 32 | B33: Name209 | C33: الثّاني | D33: 4 | E33: 2-02428531 | F33: 1-00690646 | G33: 2008-05-24 | H33: NI'ILYA
A34: 33 | B34: Name214 | C34: الثّاني | D34: 5 | E34: 2-02370622 | F34: 1-00678298 | G34: 2008-01-07 | H34: ISDUD
A35: 34 | B35: Name224 | C35: الثّاني | D35: 6 | E35: 2-02215198 | F35: 1-00645439 | G35: 2008-07-04 | H35: BEIT DARAS
A36: 35 | B36: Name235 | C36: الثّاني | D36: 1 | E36: 2-02655030 | F36: 1-00740511 | G36: 2008-10-30 | H36: SHE'UOUTH
A37: 36 | B37: Name245 | C37: الثّاني | D37: 2 | E37: 2-02643553 | F37: 1-00737998 | G37: 2008-01-25 | H37: NAJMAT ES SOUFI
A38: 37 | B38: Name248 | C38: الثّاني | D38: 3 | G38: 1990-01-01 | H38: NAJMAT ES SOUFI
A39: 38 | B39: Name249 | C39: الثّاني | D39: 3 | F39: 1-00717277 | G39: 2008-09-21 | H39: NAJMAT ES SOUFI
A40: 39 | B40: Name253 | C40: الثّاني | D40: 3 | E40: 2-03098796 | F40: 1-00842210 | G40: 2008-08-15 | H40: KHIRBET EL SIDREH
A41: 40 | B41: Name254 | C41: الثّاني | D41: 3 | E41: 2-02379191 | F41: 1-00680059 | G41: 2008-11-22 | H41: ISDUD
A42: 41 | B42: Name272 | C42: الثّاني | D42: 6 | E42: 2-08504213 | F42: 1-02371512 | G42: 2008-12-07 | H42: YIBNA
A43: 42 | B43: Name274 | C43: الثّاني | D43: 6 | E43: 2-02501486 | F43: 1-00706647 | G43: 2008-11-05 | H43: SAWAFIR ESH SHAMILIYA
A44: 43 | B44: Name277 | C44: الثّاني | D44: 7 | E44: 2-02683089 | F44: 1-00746740 | G44: 2008-12-05 | H44: NU'EIMAT EL QADI

Sheet الثّالث
A1: م | B1: اسم الطالب | C1: الصف | D1: الشعبة | E1: رقم تسجيل الفرد | F1: رقم تسجيل العائلة | G1: تاريخ الميلاد | H1: البلدة الأصلية
A2: 1 | B2: Name6 | C2: الثّالث | D2: 2 | E2: 2-03108563 | F2: 1-00844172 | G2: 2008-12-21 | H2: ARAB ABU RIZQ
A3: 2 | B3: Name14 | C3: الثّالث | D3: 3 | E3: 2-07500821 | F3: 1-02115850 | G3: 2008-10-02 | H3: BEERSHEBA
A4: 3 | B4: Name16 | C4: الثّالث | D4: 4 | E4: 2-02279412 | F4: 1-00658997 | G4: 2008-05-14 | H4: BUREIR
A5: 4 | B5: Name19 | C5: الثّالث | D5: 4 | E5: 2-02476286 | F5: 1-00701129 | G5: 2008-07-21 | H5: SAWAFIR ESH SHARQIYA
A6: 5 | B6: Name23 | C6: الثّالث | D6: 6 | E6: 2-02578371 | F6: 1-00724364 | G6: 2008-02-26 | H6: GHAWALI ABU SITTEH
A7: 6 | B7: Name42 | C7: الثّالث | D7: 1 | E7: 2-02643384 | F7: 1-00737957 | G7: 2008-07-14 | H7: NAJMAT ES SOUFI
A8: 7 | B8: Name43 | C8: الثّالث | D8: 1 | E8: 2-02304509 | F8: 1-00664233 | G8: 2008-08-15 | H8: BUREIR
A9: 8 | B9: Name45 | C9: الثّالث | D9: 2 | E9: 2-02148936 | F9: 1-00631824 | G9: 2008-07-20 | H9: BARBARA
A10: 9 | B10: Name67 | C10: الثّالث | D10: 5 | E10: 2-02559674 | F10: 1-00720327 | G10: 2007-09-04 | H10: SHUYOUKH EL 'EID
A11: 10 | B11: Name76 | C11: الثّالث | D11: 7 | E11: 2-08344856 | F11: 1-00743434 | G11: 2008-01-01 | H11: NU'EIMAT EL QADI
A12: 11 | B12: Name81 | C12: الثّالث | D12: 1 | E12: 2-02840446 | F12: 1-00783961 | G12: 2008-06-23 | H12: JAFFA EL MANSHIYA
A13: 12 | B13: Name82 | C13: الثّالث | D13: 1 | E13: 2-02656120 | F13: 1-00740750 | G13: 2008-02-12 | H13: MUHAMMADIYIN
A14: 13 | B14: Name86 | C14: الثّالث | D14: 1 | E14: 2-03024624 | F14: 1-00826223 | G14: 2008-01-01 | H14: WADI HUNEIN
A15: 14 | B15: Name96 | C15: الثّالث | D15: 2 | E15: 2-03054747 | F15: 1-00832865 | G15: 2008-09-22 | H15: YIBNA
A16: 15 | B16: Name97 | C16: الثّالث | D16: 2 | E16: 2-02378463 | F16: 1-00679881 | G16: 2008-03-23 | H16: JURA
A17: 16 | B17: Name100 | C17: الثّالث | D17: 3 | E17: 2-02466620 | F17: 1-00698947 | G17: 2008-11-03 | H17: SAWAFIR EL GHARBIYA
A18: 17 | B18: Name102 | C18: الثّالث | D18: 3 | E18: 2-02933221 | F18: 1-00806347 | G18: 2008-05-20 | H18: SHEIK MUWWANNIS
A19: 18 | B19: Name107 | C19: الثّالث | D19: 4 | E19: 2-03023617 | F19: 1-00825974 | G19: 2008-06-01 | H19: WADI HUNEIN
A20: 19 | B20: Name108 | C20: الثّالث | D20: 4 | E20: 2-02611864 | F20: 1-00731347 | G20: 2008-10-27 | H20: NAJMAT ABU SUHAIBAN
A21: 20 | B21: Name110 | C21: الثّالث | D21: 4 | E21: 2-02920911 | F21: 1-00803579 | G21: 2008-12-04 | H21: SALAMA
A22: 21 | B22: Name113 | C22: الثّالث | D22: 4 | E22: 2-02893473 | F22: 1-00797202 | G22: 2008-11-26 | H22: FAJJA
A23: 22 | B23: Name118 | C23: الثّالث | D23: 5 | E23: 2-02605844 | F23: 1-00729927 | G23: 2008-02-21 | H23: NAJMAT ABU 'ADIRA
A24: 23 | B24: Name130 | C24: الثّالث | D24: 7 | E24: 2-03075789 | F24: 1-00837279 | G24: 2008-05-18 | H24: YIBNA
A25: 24 | B25: Name133 | C25: الثّالث | D25: 7 | E25: 2-03056611 | G25: 2008-09-27 | H25: ARAB ABU RIZQ
A26: 25 | B26: Name157 | C26: الثّالث | D26: 3 | E26: 2-02428057 | F26: 1-00690531 | G26: 2008-08-03 | H26: KARATIYA
A27: 26 | B27: Name168 | C27: الثّالث | D27: 5 | E27: 2-02874042 | F27: 1-00792221 | G27: 2008-05-29 | H27: JAFFA SAKNET DARWICH
A28: 27 | B28: Name175 | C28: الثّالث | D28: 5 | E28: 2-02561570 | F28: 1-00720720 | G28: 2008-07-02 | H28: SHUYOUKH EL 'EID
A29: 28 | B29: Name181 | C29: الثّالث | D29: 6 | E29: 2-02279510 | F29: 1-00659024 | G29: 2008-07-16 | H29: BUREIR
A30: 29 | B30: Name185 | C30: الثّالث | D30: 7 | E30: 2-02679551 | F30: 1-00746041 | G30: 2008-10-04 | H30: NU'EIMAT EL QADI
A31: 30 | B31: Name199 | C31: الثّالث | D31: 2 | F31: 1-00659076 | G31: 2008-05-16 | H31: SARAFAND EL 'AMAR
A32: 31 | B32: Name202 | C32: الثّالث | D32: 3 | E32: 2-03106135 | F32: 1-00843676 | G32: 2008-02-24 | H32: ARAB ABU RIZQ
A33: 32 | B33: Name207 | C33: الثّالث | D33: 4 | G33: 2008-05-04 | H33: HATTA
A34: 33 | B34: Name208 | C34: الثّالث | D34: 4 | E34: 2-02280231 | F34: 1-00659174 | G34: 2008-01-01 | H34: BUREIR
A35: 34 | B35: Name219 | C35: الثّالث | D35: 5 | E35: 2-03056249 | F35: 1-00833177 | G35: 2009-01-30 | H35: YIBNA
A36: 35 | B36: Name238 | C36: الثّالث | D36: 1 | E36: 2-02605856 | F36: 1-00729929 | G36: 2008-02-05 | H36: NAJMAT ABU 'ADIRA
A37: 36 | B37: Name243 | C37: الثّالث | D37: 2 | E37: 2-02901282 | F37: 1-00798983 | G37: 2008-09-05 | H37: SUMMEIL
A38: 37 | B38: Name252 | C38: الثّالث | D38: 3 | E38: 2-02893415 | F38: 1-00797184 | G38: 2008-08-24 | H38: FAJJA
A39: 38 | B39: Name260 | C39: الثّالث | D39: 4 | E39: 2-02895039 | F39: 1-00797588 | G39: 2008-10-21 | H39: ABBASIYA
A40: 39 | B40: Name271 | C40: الثّالث | D40: 6 | E40: 2-03047000 | F40: 1-00831272 | G40: 2008-12-26 | H40: YIBNA

Sheet الرّابع
A1: م | B1: اسم الطالب | C1: الصف | D1: الشعبة | E1: رقم تسجيل الفرد | F1: رقم تسجيل العائلة | G1: تاريخ الميلاد | H1: البلدة الأصلية
A2: 1 | B2: Name2 | C2: الرّابع | D2: 1 | E2: 2-03076009 | F2: 1-00837330 | G2: 2008-02-27 | H2: YIBNA
A3: 2 | B3: Name11 | C3: الرّابع | D3: 3 | E3: 2-02943757 | F3: 1-00808692 | G3: 2008-10-16 | H3: AQIR
A4: 3 | B4: Name17 | C4: الرّابع | D4: 4 | E4: 2-02894554 | F4: 1-00797491 | G4: 2008-04-28 | H4: ABBASIYA
A5: 4 | B5: Name25 | C5: الرّابع | D5: 6 | E5: 2-02656855 | F5: 1-00740905 | G5: 2008-06-28 | H5: SUBHIYIN
A6: 5 | B6: Name26 | C6: الرّابع | D6: 6 | E6: 2-02927950 | F6: 1-00805213 | G6: 2008-02-23 | H6: SALAMA
A7: 6 | B7: Name30 | C7: الرّابع | D7: 7 | E7: 2-02574900 | F7: 1-00723564 | G7: 2008-11-29 | H7: GHAWALI ABU KHATLEH
A8: 7 | B8: Name34 | C8: الرّابع | D8: 7 | E8: 2-02575214 | F8: 1-00723631 | G8: 2008-11-02 | H8: GHAWALI ABU KHATLEH
A9: 8 | B9: Name40 | C9: الرّابع | D9: 1 | E9: 2-02990509 | F9: 1-00828260 | G9: 2008-12-21 | H9: QUBEIBA
A10: 9 | B10: Name41 | C10: الرّابع | D10: 1 | E10: 2-02614260 | F10: 1-00731858 | G10: 2008-07-07 | H10: NAJMAT ABU SUHAIBAN
A11: 10 | B11: Name44 | C11: الرّابع | D11: 2 | E11: 2-02162697 | F11: 1-00634694 | G11: 2008-06-29 | H11: BATANI GHARBI
A12: 11 | B12: Name48 | C12: الرّابع | D12: 2 | E12: 2-02565370 | F12: 1-00721425 | G12: 2008-02-25 | H12: WALAYEDA
A13: 12 | B13: Name55 | C13: الرّابع | D13: 4 | E13: 2-02242954 | F13: 1-00651333 | G13: 2008-04-07 | H13: BEIT TIMA
A14: 13 | B14: Name59 | C14: الرّابع | D14: 5 | E14: 2-02685290 | F14: 1-00747240 | G14: 2008-07-16 | H14: NU'EIMAT EL QADI
A15: 14 | B15: Name63 | C15: الرّابع | D15: 5 | E15: 2-02677916 | F15: 1-00745709 | G15: 2008-07-15 | H15: NU'EIMAT EL QADI
A16: 15 | B16: Name68 | C16: الرّابع | D16: 6 | E16: 2-07709602 | F16: 1-00678918 | G16: 2008-11-06 | H16: ISDUD
A17: 16 | B17: Name71 | C17: الرّابع | D17: 6 | F17: 1-00627994 | G17: 2008-01-20 | H17: NU'EIMAT EL QADI
A18: 17 | B18: Name72 | C18: الرّابع | D18: 6 | E18: 2-02993862 | F18: 1-00819592 | G18: 2008-03-28 | H18: SARAFAND EL 'AMAR
A19: 18 | B19: Name77 | C19: الرّابع | D19: 7 | E19: 2-02894208 | F19: 1-00797393 | G19: 2008-05-24 | H19: ABBASIYA
A20: 19 | B20: Name90 | C20: الرّابع | D20: 1 | E20: 2-02933247 | F20: 1-00806351 | G20: 2007-07-19 | H20: SHEIK MUWWANNIS
A21: 20 | B21: Name98 | C21: الرّابع | D21: 2 | E21: 2-02163498 | F21: 1-00634852 | G21: 2008-09-10 | H21: BATANI GHARBI
A22: 21 | B22: Name106 | C22: الرّابع | D22: 3 | E22: 2-03034851 | F22: 1-00828528 | G22: 2008-12-14 | H22: ARAB ER RAYASHAT
A23: 22 | B23: Name112 | C23: الرّابع | D23: 4 | E23: 2-02932968 | F23: 1-00806293 | G23: 2008-05-07 | H23: AQIR
A24: 23 | B24: Name115 | C24: الرّابع | D24: 4 | E24: 2-02427784 | F24: 1-00690477 | G24: 2008-08-28 | H24: KARATIYA
A25: 24 | B25: Name116 | C25: الرّابع | D25: 5 | E25: 2-02926055 | F25: 1-00804811 | G25: 2008-02-28 | H25: SALAMA
A26: 25 | B26: Name127 | C26: الرّابع | D26: 6 | E26: 2-02561609 | F26: 1-00720726 | G26: 2008-06-09 | H26: SHUYOUKH EL 'EID
A27: 26 | B27: Name129 | C27: الرّابع | D27: 7 | E27: 2-03022791 | F27: 1-00825763 | G27: 2009-01-25 | H27: WADI HUNEIN
A28: 27 | B28: Name136 | C28: الرّابع | D28: 1 | E28: 2-02368950 | F28: 1-00677891 | G28: 2008-10-14 | H28: ISDUD
A29: 28 | B29: Name137 | C29: الرّابع | D29: 1 | E29: 2-02042421 | F29: 1-00609268 | G29: 2008-11-18 | H29: MAJDAL
A30: 29 | B30: Name145 | C30: الرّابع | D30: 2 | E30: 2-02932568 | F30: 1-00806217 | G30: 2008-06-04 | H30: AQIR
A31: 30 | B31: Name152 | C31: الرّابع | D31: 2 | E31: 2-02582922 | F31: 1-00725190 | G31: 2008-12-16 | H31: GHAWALI ABU SITTEH
A32: 31 | B32: Name153 | C32: الرّابع | D32: 3 | E32: 2-02797619 | F32: 1-00773184 | G32: 2007-05-12 | H32: JAFFA EL MANSHIYA
A33: 32 | B33: Name174 | C33: الرّابع | D33: 5 | E33: 2-02980585 | F33: 1-00816663 | G33: 2008-01-02 | H33: BASHSHIT
A34: 33 | B34: Name176 | C34: الرّابع | D34: 6 | E34: 2-02367524 | F34: 1-00677609 | G34: 2008-09-02 | H34: ISDUD
A35: 34 | B35: Name180 | C35: الرّابع | D35: 6 | E35: 2-02894977 | F35: 1-00797576 | G35: 2008-05-21 | H35: ABBASIYA
A36: 35 | B36: Name184 | C36: الرّابع | D36: 7 | E36: 2-03081848 | F36: 1-00838423 | G36: 2008-09-06 | H36: YIBNA
A37: 36 | B37: Name186 | C37: الرّابع | D37: 7 | E37: 2-02476437 | F37: 1-00701158 | G37: 2008-07-01 | H37: SAWAFIR ESH SHARQIYA
A38: 37 | B38: Name190 | C38: الرّابع | D38: 1 | E38: 2-02987333 | F38: 1-00818124 | G38: 2008-01-27 | H38: BIR SALIM
A39: 38 | B39: Name211 | C39: الرّابع | D39: 4 | E39: 2-03040730 | F39: 1-00829852 | G39: 2008-03-29 | H39: WADI HUNEIN
A40: 39 | B40: Name218 | C40: الرّابع | D40: 5 | E40: 2-02970928 | F40: 1-00814588 | G40: 2008-02-21 | H40: BASHSHIT
A41: 40 | B41: Name222 | C41: الرّابع | D41: 6 | E41: 2-02945148 | F41: 1-00808985 | G41: 2008-04-26 | H41: AQIR
A42: 41 | B42: Name230 | C42: الرّابع | D42: 7 | E42: 2-02643664 | F42: 1-00738029 | G42: 2007-02-21 | H42: GHAWALI EN NAB'AT
A43: 42 | B43: Name231 | C43: الرّابع | D43: 7 | F43: 1-00828268 | G43: 2008-08-16 | H43: GHAWALI EN NAB'AT
A44: 43 | B44: Name232 | C44: الرّابع | D44: 7 | E44: 2-02677283 | F44: 1-00745562 | G44: 2008-10-24 | H44: NU'EIMAT EL QADI
A45: 44 | B45: Name240 | C45: الرّابع | D45: 1 | E45: 2-02332058 | F45: 1-00670016 | G45: 2008-05-22 | H45: FALUJA
A46: 45 | B46: Name246 | C46: الرّابع | D46: 2 | G46: 2008-02-19 | H46: NAJMAT ES SOUFI
A47: 46 | B47: Name256 | C47: الرّابع | D47: 3 | E47: 2-02433211 | F47: 1-00691708 | G47: 2008-10-22 | H47: KARATIYA
A48: 47 | B48: Name257 | C48: الرّابع | D48: 3 | E48: 2-02457834 | F48: 1-00697066 | G48: 2008-10-01 | H48: SAWAFIR EL GHARBIYA
A49: 48 | B49: Name261 | C49: الرّابع | D49: 4 | E49: 2-02945995 | F49: 1-00809195 | G49: 2008-03-13 | H49: AQIR
A50: 49 | B50: Name264 | C50: الرّابع | D50: 4 | E50: 2-02678850 | F50: 1-00745878 | G50: 2008-08-05 | H50: NU'EIMAT EL QADI
A51: 50 | B51: Name269 | C51: الرّابع | D51: 5 | E51: 2-02989812 | F51: 1-00818667 | G51: 2008-03-06 | H51: QUBEIBA
A52: 51 | B52: Name275 | C52: الرّابع | D52: 6 | E52: 2-03077092 | F52: 1-00837528 | G52: 2008-03-29 | H52: YIBNA
A53: 52 | B53: Name281 | C53: الرّابع | D53: 7 | E53: 2-03034115 | F53: 1-00828379 | G53: 2008-09-05 | H53: ARAB EL QALA'I

Sheet الخامس
A1: م | B1: اسم الطالب | C1: الصف | D1: الشعبة | E1: رقم تسجيل الفرد | F1: رقم تسجيل العائلة | G1: تاريخ الميلاد | H1: البلدة الأصلية
A2: 1 | B2: Name1 | C2: الخامس | D2: 1 | E2: 2-02969456 | F2: 1-00814263 | G2: 2008-06-12 | H2: NU'EIMAT EL QADI
A3: 2 | B3: Name9 | C3: الخامس | D3: 3 | E3: 2-02678715 | F3: 1-00745858 | G3: 2008-08-08 | H3: NU'EIMAT EL QADI
A4: 3 | B4: Name18 | C4: الخامس | D4: 4 | E4: 2-03040768 | F4: 1-00829863 | G4: 2008-10-29 | H4: WADI HUNEIN
A5: 4 | B5: Name24 | C5: الخامس | D5: 6 | E5: 2-02683118 | F5: 1-00746744 | G5: 2008-01-01 | H5: NU'EIMAT EL QADI
A6: 5 | B6: Name32 | C6: الخامس | D6: 7 | E6: 2-03104194 | F6: 1-00843288 | G6: 2008-01-01 | H6: ARAB ABU RIZQ
A7: 6 | B7: Name33 | C7: الخامس | D7: 7 | E7: 2-02895301 | F7: 1-00797633 | G7: 2008-12-06 | H7: ABBASIYA
A8: 7 | B8: Name35 | C8: الخامس | D8: 7 | E8: 2-02679767 | F8: 1-00746098 | G8: 2008-04-08 | H8: NU'EIMAT EL QADI
A9: 8 | B9: Name37 | C9: الخامس | D9: 1 | E9: 2-02753692 | F9: 1-00762390 | G9: 2008-09-08 | H9: JAFFA EL AJAMI
A10: 9 | B10: Name49 | C10: الخامس | D10: 3 | E10: 2-03082265 | F10: 1-00838505 | G10: 2008-08-27 | H10: WALAYEDA
A11: 10 | B11: Name66 | C11: الخامس | D11: 5 | E11: 2-02684984 | F11: 1-00747155 | G11: 2008-05-15 | H11: NU'EIMAT EL QADI
A12: 11 | B12: Name69 | C12: الخامس | D12: 6 | E12: 2-02369066 | F12: 1-00677918 | G12: 2008-10-01 | H12: ISDUD
A13: 12 | B13: Name99 | C13: الخامس | D13: 3 | E13: 2-02677288 | F13: 1-00745563 | G13: 2008-08-29 | H13: NU'EIMAT EL QADI
A14: 13 | B14: Name101 | C14: الخامس | D14: 3 | G14: 2008-01-01 | H14: SAWAFIR EL GHARBIYA
A15: 14 | B15: Name117 | C15: الخامس | D15: 5 | G15: 2008-01-01 | H15: SALAMA
A16: 15 | B16: Name121 | C16: الخامس | D16: 6 | E16: 2-02003693 | F16: 1-00600943 | G16: 2007-11-14 | H16: BARQA
A17: 16 | B17: Name123 | C17: الخامس | D17: 6 | E17: 2-02280476 | F17: 1-00659223 | G17: 2006-10-22 | H17: BUREIR
A18: 17 | B18: Name124 | C18: الخامس | D18: 6 | E18: 2-02509253 | F18: 1-00708420 | G18: 2007-04-27 | H18: BEERSHEBA
A19: 18 | B19: Name126 | C19: الخامس | D19: 6 | E19: 2-02677927 | F19: 1-00745712 | G19: 2008-02-20 | H19: NU'EIMAT EL QADI
A20: 19 | B20: Name128 | C20: الخامس | D20: 7 | E20: 2-02235578 | F20: 1-00649816 | G20: 2008-08-01 | H20: BEIT DARAS
A21: 20 | B21: Name138 | C21: الخامس | D21: 1 | E21: 2-02007019 | F21: 1-00601637 | G21: 2008-07-11 | H21: BARQA
A22: 21 | B22: Name141 | C22: الخامس | D22: 2 | E22: 2-02448715 | F22: 1-00695043 | G22: 2008-06-16 | H22: QASTINA
A23: 22 | B23: Name149 | C23: الخامس | D23: 2 | E23: 2-03112359 | F23: 1-00844960 | G23: 2008-03-04 | H23: ARAB EN NAJAWIYEH
A24: 23 | B24: Name151 | C24: الخامس | D24: 2 | E24: 2-02992961 | F24: 1-00819398 | G24: 2008-03-07 | H24: SARAFAND EL 'AMAR
A25: 24 | B25: Name160 | C25: الخامس | D25: 4 | G25: 2008-06-12 | H25: AQIR
A26: 25 | B26: Name166 | C26: الخامس | D26: 5 | E26: 2-02368061 | F26: 1-00677720 | G26: 2008-08-09 | H26: ISDUD
A27: 26 | B27: Name167 | C27: الخامس | D27: 5 | E27: 2-02679069 | F27: 1-00745917 | G27: 2007-03-21 | H27: NU'EIMAT EL QADI
A28: 27 | B28: Name177 | C28: الخامس | D28: 6 | E28: 2-06114478 | F28: 1-01324405 | G28: 2008-10-09 | H28: FALUJA
A29: 28 | B29: Name182 | C29: الخامس | D29: 7 | E29: 2-02582965 | F29: 1-00725198 | G29: 2008-05-27 | H29: GHAWALI ABU SITTEH
A30: 29 | B30: Name191 | C30: الخامس | D30: 1 | E30: 2-02652205 | F30: 1-00739876 | G30: 2007-11-04 | H30: SHE'UOUTH
A31: 30 | B31: Name192 | C31: الخامس | D31: 1 | E31: 2-03054837 | F31: 1-00832881 | G31: 2008-07-25 | H31: YIBNA
A32: 31 | B32: Name195 | C32: الخامس | D32: 2 | E32: 2-02985743 | F32: 1-00817759 | G32: 2008-11-01 | H32: BIR SALIM
A33: 32 | B33: Name204 | C33: الخامس | D33: 3 | E33: 2-03099590 | F33: 1-00842366 | G33: 2008-10-19 | H33: ARAB ABU AKAR
A34: 33 | B34: Name223 | C34: الخامس | D34: 6 | E34: 2-02677575 | F34: 1-00745631 | G34: 2008-04-28 | H34: NU'EIMAT EL QADI
A35: 34 | B35: Name227 | C35: الخامس | D35: 6 | E35: 2-03046656 | F35: 1-00831192 | G35: 2008-03-01 | H35: YIBNA
A36: 35 | B36: Name239 | C36: الخامس | D36: 1 | E36: 2-02989078 | F36: 1-00818523 | G36: 2008-07-05 | H36: QUBEIBA
A37: 36 | B37: Name241 | C37: الخامس | D37: 1 | E37: 2-02920822 | F37: 1-00803555 | G37: 2008-03-08 | H37: SALAMA
A38: 37 | B38: Name242 | C38: الخامس | D38: 2 | F38: 1-00762373 | G38: 2008-12-11 | H38: SALAMA
A39: 38 | B39: Name251 | C39: الخامس | D39: 3 | E39: 2-02675659 | F39: 1-00745149 | G39: 2008-05-27 | H39: NU'EIMAT EL QADI
A40: 39 | B40: Name255 | C40: الخامس | D40: 3 | G40: 2008-12-29 | H40: ISDUD
A41: 40 | B41: Name259 | C41: الخامس | D41: 4 | E41: 2-02679323 | F41: 1-00745977 | G41: 2008-03-15 | H41: NU'EIMAT EL QADI
A42: 41 | B42: Name273 | C42: الخامس | D42: 6 | E42: 2-02942807 | F42: 1-00808447 | G42: 2007-01-28 | H42: AQIR
A43: 42 | B43: Name276 | C43: الخامس | D43: 7 | E43: 2-02327048 | F43: 1-00668856 | G43: 2009-01-29 | H43: FALUJA

Sheet السّادس
A1: م | B1: اسم الطالب | C1: الصف | D1: الشعبة | E1: رقم تسجيل الفرد | F1: رقم تسجيل العائلة | G1: تاريخ الميلاد | H1: البلدة الأصلية
A2: 1 | B2: Name4 | C2: السّادس | D2: 2 | E2: 2-02216018 | F2: 1-00844271 | G2: 2008-02-02 | H2: SARAFAND EL 'AMAR
A3: 2 | B3: Name10 | C3: السّادس | D3: 3 | E3: 2-02457835 | F3: 1-00697066 | G3: 2008-10-01 | H3: SAWAFIR EL GHARBIYA
A4: 3 | B4: Name13 | C4: السّادس | D4: 3 | E4: 2-02147975 | F4: 1-00631642 | G4: 2008-02-15 | H4: BEIT JIRJA
A5: 4 | B5: Name22 | C5: السّادس | D5: 5 | E5: 2-02692060 | F5: 1-00748525 | G5: 2008-07-28 | H5: NU'EIMAT EL QADI
A6: 5 | B6: Name39 | C6: السّادس | D6: 1 | E6: 2-02990508 | F6: 1-00818829 | G6: 2008-03-25 | H6: QUBEIBA
A7: 6 | B7: Name61 | C7: السّادس | D7: 5 | E7: 2-03033201 | F7: 1-00828154 | G7: 2008-08-26 | H7: ARAB EL QALA'I
A8: 7 | B8: Name62 | C8: السّادس | D8: 5 | E8: 2-02547519 | F8: 1-00717775 | G8: 2008-02-23 | H8: MALALIHAH
A9: 8 | B9: Name64 | C9: السّادس | D9: 5 | E9: 2-02370909 | F9: 1-00678352 | G9: 2008-08-12 | H9: ISDUD
A10: 9 | B10: Name75 | C10: السّادس | D10: 7 | F10: 1-00796993 | G10: 2008-06-15 | H10: NU'EIMAT EL QADI
A11: 10 | B11: Name78 | C11: السّادس | D11: 7 | E11: 2-02165529 | F11: 1-00635292 | G11: 2008-08-12 | H11: HAMAMA
A12: 11 | B12: Name80 | C12: السّادس | D12: 1 | E12: 2-02840907 | F12: 1-00784067 | G12: 2006-01-18 | H12: JAFFA EL MANSHIYA
A13: 12 | B13: Name83 | C13: السّادس | D13: 1 | E13: 2-02282003 | F13: 1-00659563 | G13: 2008-12-14 | H13: BUREIR
A14: 13 | B14: Name92 | C14: السّادس | D14: 1 | E14: 2-02560347 | F14: 1-00720485 | G14: 2008-02-28 | H14: SHUYOUKH EL 'EID
A15: 14 | B15: Name93 | C15: السّادس | D15: 1 | E15: 2-02698101 | F15: 1-00749868 | G15: 2008-12-12 | H15: ABU 'UWAYLI
A16: 15 | B16: Name105 | C16: السّادس | D16: 3 | E16: 2-02694957 | F16: 1-00749141 | G16: 2008-03-07 | H16: AJRAMI
A17: 16 | B17: Name120 | C17: السّادس | D17: 5 | E17: 2-02609379 | F17: 1-00730800 | G17: 2008-07-18 | H17: NAJMAT ABU SUHAIBAN
A18: 17 | B18: Name122 | C18: السّادس | D18: 6 | E18: 2-02952869 | F18: 1-00810601 | G18: 2008-12-22 | H18: LYDDA
A19: 18 | B19: Name135 | C19: السّادس | D19: 1 | E19: 2-02379165 | F19: 1-00680054 | G19: 2008-11-01 | H19: ISDUD
A20: 19 | B20: Name147 | C20: السّادس | D20: 2 | F20: 1-00844389 | G20: 2008-05-04 | H20: QUBEIBA
A21: 20 | B21: Name148 | C21: السّادس | D21: 2 | E21: 2-02448435 | F21: 1-00694983 | G21: 2008-07-22 | H21: QASTINA
A22: 21 | B22: Name154 | C22: السّادس | D22: 3 | G22: 2008-01-19 | H22: JAFFA EL MANSHIYA
A23: 22 | B23: Name155 | C23: السّادس | D23: 3 | E23: 2-02279418 | F23: 1-00658999 | G23: 2008-05-11 | H23: BUREIR
A24: 23 | B24: Name156 | C24: السّادس | D24: 3 | E24: 2-02677944 | F24: 1-00745716 | G24: 2008-03-14 | H24: NU'EIMAT EL QADI
A25: 24 | B25: Name162 | C25: السّادس | D25: 4 | E25: 2-02448498 | F25: 1-00694993 | G25: 2008-05-04 | H25: QASTINA
A26: 25 | B26: Name165 | C26: السّادس | D26: 5 | E26: 2-02989005 | F26: 1-00818503 | G26: 2008-12-07 | H26: QUBEIBA
A27: 26 | B27: Name172 | C27: السّادس | D27: 5 | E27: 2-02980867 | F27: 1-00816730 | G27: 2008-08-08 | H27: QUBEIBA
A28: 27 | B28: Name178 | C28: السّادس | D28: 6 | E28: 2-02684860 | F28: 1-00747108 | G28: 2008-04-06 | H28: NU'EIMAT EL QADI
A29: 28 | B29: Name188 | C29: السّادس | D29: 7 | E29: 2-02989488 | F29: 1-00818609 | G29: 2008-06-30 | H29: QUBEIBA
A30: 29 | B30: Name196 | C30: السّادس | D30: 2 | E30: 2-02841035 | F30: 1-00784093 | G30: 2008-07-11 | H30: JAFFA EL MANSHIYA
A31: 30 | B31: Name200 | C31: السّادس | D31: 3 | E31: 2-02455629 | F31: 1-00696580 | G31: 2008-01-05 | H31: QASTINA
A32: 31 | B32: Name201 | C32: السّادس | D32: 3 | E32: 2-02683948 | F32: 1-00746917 | G32: 2008-03-14 | H32: NU'EIMAT EL QADI
A33: 32 | B33: Name205 | C33: السّادس | D33: 3 | E33: 2-03012776 | F33: 1-00823609 | G33: 2008-04-14 | H33: NI'ANA
A34: 33 | B34: Name210 | C34: السّادس | D34: 4 | E34: 2-02676120 | F34: 1-00745294 | G34: 2007-09-20 | H34: NU'EIMAT EL QADI
A35: 34 | B35: Name213 | C35: السّادس | D35: 5 | E35: 2-03084334 | F35: 1-00838923 | G35: 2008-07-18 | H35: YIBNA
A36: 35 | B36: Name220 | C36: السّادس | D36: 5 | E36: 2-02689890 | F36: 1-00748112 | G36: 2008-09-02 | H36: NU'EIMAT EL QADI
A37: 36 | B37: Name226 | C37: السّادس | D37: 6 | E37: 2-02980896 | F37: 1-00816740 | G37: 2008-05-19 | H37: QUBEIBA
A38: 37 | B38: Name234 | C38: السّادس | D38: 1 | E38: 2-02579618 | F38: 1-00724579 | G38: 2009-01-11 | H38: GHAWALI ABU SITTEH
A39: 38 | B39: Name237 | C39: السّادس | D39: 1 | E39: 2-02679410 | F39: 1-00746002 | G39: 2008-11-15 | H39: NU'EIMAT EL QADI
A40: 39 | B40: Name244 | C40: السّادس | D40: 2 | E40: 2-07669696 | F40: 1-02166839 | G40: 2008-07-30 | H40: ACRE
A41: 40 | B41: Name250 | C41: السّادس | D41: 3 | E41: 2-07128621 | F41: 1-00691729 | G41: 2008-08-22 | H41: KARATIYA
A42: 41 | B42: Name262 | C42: السّادس | D42: 4 | E42: 2-02989721 | F42: 1-00818648 | G42: 2008-12-12 | H42: QUBEIBA
A43: 42 | B43: Name263 | C43: السّادس | D43: 4 | E43: 2-02969247 | F43: 1-00814222 | G43: 2008-03-10 | H43: BASHSHIT
A44: 43 | B44: Name265 | C44: السّادس | D44: 4 | E44: 2-03082473 | F44: 1-00838542 | G44: 2008-09-26 | H44: YIBNA
A45: 44 | B45: Name278 | C45: السّادس | D45: 7 | E45: 2-02235740 | F45: 1-00649846 | G45: 2008-02-27 | H45: BEIT DARAS
A46: 45 | B46: Name279 | C46: السّادس | D46: 7 | E46: 2-02639066 | F46: 1-00737082 | G46: 2008-07-14 | H46: GHAWALI EN NAB'AT
A47: 46 | B47: Name280 | C47: السّادس | D47: 7 | E47: 2-02675570 | F47: 1-00745121 | G47: 2008-07-12 | H47: NU'EIMAT EL QADI
A48: 47 | B48: Name282 | C48: السّادس | D48: 7 | E48: 2-03109581 | F48: 1-00844361 | G48: 2008-07-10 | H48: ARAB ABU RIZQ
